Workbook

Sheet Sheet1
A1: 구 구 단
A3: 2 단 | G3: 3 단 | M3: 4 단 | S3: 5 단 | Y3: 6 단 | AE3: 7 단 | AK3: 8 단
A4: 2 | B4: * | C4: 1 | D4: = | E4: =A4*C4 -> 2 | G4: 3 | H4: * | I4: 1 | J4: = | K4: =G4*I4 -> 3 | M4: 4 | N4: * | O4: 1 | P4: = | Q4: =M4*O4 -> 4 | S4: 5 | T4: * | U4: 1 | V4: = | W4: =S4*U4 -> 5 | Y4: 6 | Z4: * | AA4: 1 | AB4: = | AC4: =Y4*AA4 -> 6 | AE4: 7 | AF4: * | AG4: 1 | AH4: = | AI4: =AE4*AG4 -> 7 | AK4: 8 | AL4: * | AM4: 1 | AN4: = | AO4: =AK4*AM4 -> 8
A5: 2 | B5: * | C5: 2 | D5: = | E5: =A5*C5 -> 4 | G5: 3 | H5: * | I5: 2 | J5: = | K5: =G5*I5 -> 6 | M5: 4 | N5: * | O5: 2 | P5: = | Q5: =M5*O5 -> 8 | S5: 5 | T5: * | U5: 2 | V5: = | W5: =S5*U5 -> 10 | Y5: 6 | Z5: * | AA5: 2 | AB5: = | AC5: =Y5*AA5 -> 12 | AE5: 7 | AF5: * | AG5: 2 | AH5: = | AI5: =AE5*AG5 -> 14 | AK5: 8 | AL5: * | AM5: 2 | AN5: = | AO5: =AK5*AM5 -> 16
A6: 2 | B6: * | C6: 3 | D6: = | E6: =A6*C6 -> 6 | G6: 3 | H6: * | I6: 3 | J6: = | K6: =G6*I6 -> 9 | M6: 4 | N6: * | O6: 3 | P6: = | Q6: =M6*O6 -> 12 | S6: 5 | T6: * | U6: 3 | V6: = | W6: =S6*U6 -> 15 | Y6: 6 | Z6: * | AA6: 3 | AB6: = | AC6: =Y6*AA6 -> 18 | AE6: 7 | AF6: * | AG6: 3 | AH6: = | AI6: =AE6*AG6 -> 21 | AK6: 8 | AL6: * | AM6: 3 | AN6: = | AO6: =AK6*AM6 -> 24
A7: 2 | B7: * | C7: 4 | D7: = | E7: =A7*C7 -> 8 | G7: 3 | H7: * | I7: 4 | J7: = | K7: =G7*I7 -> 12 | M7: 4 | N7: * | O7: 4 | P7: = | Q7: =M7*O7 -> 16 | S7: 5 | T7: * | U7: 4 | V7: = | W7: =S7*U7 -> 20 | Y7: 6 | Z7: * | AA7: 4 | AB7: = | AC7: =Y7*AA7 -> 24 | AE7: 7 | AF7: * | AG7: 4 | AH7: = | AI7: =AE7*AG7 -> 28 | AK7: 8 | AL7: * | AM7: 4 | AN7: = | AO7: =AK7*AM7 -> 32
A8: 2 | B8: * | C8: 5 | D8: = | E8: =A8*C8 -> 10 | G8: 3 | H8: * | I8: 5 | J8: = | K8: =G8*I8 -> 15 | M8: 4 | N8: * | O8: 5 | P8: = | Q8: =M8*O8 -> 20 | S8: 5 | T8: * | U8: 5 | V8: = | W8: =S8*U8 -> 25 | Y8: 6 | Z8: * | AA8: 5 | AB8: = | AC8: =Y8*AA8 -> 30 | AE8: 7 | AF8: * | AG8: 5 | AH8: = | AI8: =AE8*AG8 -> 35 | AK8: 8 | AL8: * | AM8: 5 | AN8: = | AO8: =AK8*AM8 -> 40
A9: 2 | B9: * | C9: 6 | D9: = | E9: =A9*C9 -> 12 | G9: 3 | H9: * | I9: 6 | J9: = | K9: =G9*I9 -> 18 | M9: 4 | N9: * | O9: 6 | P9: = | Q9: =M9*O9 -> 24 | S9: 5 | T9: * | U9: 6 | V9: = | W9: =S9*U9 -> 30 | Y9: 6 | Z9: * | AA9: 6 | AB9: = | AC9: =Y9*AA9 -> 36 | AE9: 7 | AF9: * | AG9: 6 | AH9: = | AI9: =AE9*AG9 -> 42 | AK9: 8 | AL9: * | AM9: 6 | AN9: = | AO9: =AK9*AM9 -> 48
A10: 2 | B10: * | C10: 7 | D10: = | E10: =A10*C10 -> 14 | G10: 3 | H10: * | I10: 7 | J10: = | K10: =G10*I10 -> 21 | M10: 4 | N10: * | O10: 7 | P10: = | Q10: =M10*O10 -> 28 | S10: 5 | T10: * | U10: 7 | V10: = | W10: =S10*U10 -> 35 | Y10: 6 | Z10: * | AA10: 7 | AB10: = | AC10: =Y10*AA10 -> 42 | AE10: 7 | AF10: * | AG10: 7 | AH10: = | AI10: =AE10*AG10 -> 49 | AK10: 8 | AL10: * | AM10: 7 | AN10: = | AO10: =AK10*AM10 -> 56
A11: 2 | B11: * | C11: 8 | D11: = | E11: =A11*C11 -> 16 | G11: 3 | H11: * | I11: 8 | J11: = | K11: =G11*I11 -> 24 | M11: 4 | N11: * | O11: 8 | P11: = | Q11: =M11*O11 -> 32 | S11: 5 | T11: * | U11: 8 | V11: = | W11: =S11*U11 -> 40 | Y11: 6 | Z11: * | AA11: 8 | AB11: = | AC11: =Y11*AA11 -> 48 | AE11: 7 | AF11: * | AG11: 8 | AH11: = | AI11: =AE11*AG11 -> 56 | AK11: 8 | AL11: * | AM11: 8 | AN11: = | AO11: =AK11*AM11 -> 64
A12: 2 | B12: * | C12: 9 | D12: = | E12: =A12*C12 -> 18 | G12: 3 | H12: * | I12: 9 | J12: = | K12: =G12*I12 -> 27 | M12: 4 | N12: * | O12: 9 | P12: = | Q12: =M12*O12 -> 36 | S12: 5 | T12: * | U12: 9 | V12: = | W12: =S12*U12 -> 45 | Y12: 6 | Z12: * | AA12: 9 | AB12: = | AC12: =Y12*AA12 -> 54 | AE12: 7 | AF12: * | AG12: 9 | AH12: = | AI12: =AE12*AG12 -> 63 | AK12: 8 | AL12: * | AM12: 9 | AN12: = | AO12: =AK12*AM12 -> 72
A14: 9 단 | G14: 10 단 | M14: 11 단 | S14: 12 단 | Y14: 13 단 | AE14: 14 단 | AK14: 15 단
A15: 9 | B15: * | C15: 1 | D15: = | E15: =A15*C15 -> 9 | G15: 10 | H15: * | I15: 1 | J15: = | K15: =G15*I15 -> 10 | M15: 11 | N15: * | O15: 1 | P15: = | Q15: =M15*O15 -> 11 | S15: 12 | T15: * | U15: 1 | V15: = | W15: =S15*U15 -> 12 | Y15: 13 | Z15: * | AA15: 1 | AB15: = | AC15: =Y15*AA15 -> 13 | AE15: 14 | AF15: * | AG15: 1 | AH15: = | AI15: =AE15*AG15 -> 14 | AK15: 15 | AL15: * | AM15: 1 | AN15: = | AO15: =AK15*AM15 -> 15
A16: 9 | B16: * | C16: 2 | D16: = | E16: =A16*C16 -> 18 | G16: 10 | H16: * | I16: 2 | J16: = | K16: =G16*I16 -> 20 | M16: 11 | N16: * | O16: 2 | P16: = | Q16: =M16*O16 -> 22 | S16: 12 | T16: * | U16: 2 | V16: = | W16: =S16*U16 -> 24 | Y16: 13 | Z16: * | AA16: 2 | AB16: = | AC16: =Y16*AA16 -> 26 | AE16: 14 | AF16: * | AG16: 2 | AH16: = | AI16: =AE16*AG16 -> 28 | AK16: 15 | AL16: * | AM16: 2 | AN16: = | AO16: =AK16*AM16 -> 30
A17: 9 | B17: * | C17: 3 | D17: = | E17: =A17*C17 -> 27 | G17: 10 | H17: * | I17: 3 | J17: = | K17: =G17*I17 -> 30 | M17: 11 | N17: * | O17: 3 | P17: = | Q17: =M17*O17 -> 33 | S17: 12 | T17: * | U17: 3 | V17: = | W17: =S17*U17 -> 36 | Y17: 13 | Z17: * | AA17: 3 | AB17: = | AC17: =Y17*AA17 -> 39 | AE17: 14 | AF17: * | AG17: 3 | AH17: = | AI17: =AE17*AG17 -> 42 | AK17: 15 | AL17: * | AM17: 3 | AN17: = | AO17: =AK17*AM17 -> 45
A18: 9 | B18: * | C18: 4 | D18: = | E18: =A18*C18 -> 36 | G18: 10 | H18: * | I18: 4 | J18: = | K18: =G18*I18 -> 40 | M18: 11 | N18: * | O18: 4 | P18: = | Q18: =M18*O18 -> 44 | S18: 12 | T18: * | U18: 4 | V18: = | W18: =S18*U18 -> 48 | Y18: 13 | Z18: * | AA18: 4 | AB18: = | AC18: =Y18*AA18 -> 52 | AE18: 14 | AF18: * | AG18: 4 | AH18: = | AI18: =AE18*AG18 -> 56 | AK18: 15 | AL18: * | AM18: 4 | AN18: = | AO18: =AK18*AM18 -> 60
A19: 9 | B19: * | C19: 5 | D19: = | E19: =A19*C19 -> 45 | G19: 10 | H19: * | I19: 5 | J19: = | K19: =G19*I19 -> 50 | M19: 11 | N19: * | O19: 5 | P19: = | Q19: =M19*O19 -> 55 | S19: 12 | T19: * | U19: 5 | V19: = | W19: =S19*U19 -> 60 | Y19: 13 | Z19: * | AA19: 5 | AB19: = | AC19: =Y19*AA19 -> 65 | AE19: 14 | AF19: * | AG19: 5 | AH19: = | AI19: =AE19*AG19 -> 70 | AK19: 15 | AL19: * | AM19: 5 | AN19: = | AO19: =AK19*AM19 -> 75
A20: 9 | B20: * | C20: 6 | D20: = | E20: =A20*C20 -> 54 | G20: 10 | H20: * | I20: 6 | J20: = | K20: =G20*I20 -> 60 | M20: 11 | N20: * | O20: 6 | P20: = | Q20: =M20*O20 -> 66 | S20: 12 | T20: * | U20: 6 | V20: = | W20: =S20*U20 -> 72 | Y20: 13 | Z20: * | AA20: 6 | AB20: = | AC20: =Y20*AA20 -> 78 | AE20: 14 | AF20: * | AG20: 6 | AH20: = | AI20: =AE20*AG20 -> 84 | AK20: 15 | AL20: * | AM20: 6 | AN20: = | AO20: =AK20*AM20 -> 90
A21: 9 | B21: * | C21: 7 | D21: = | E21: =A21*C21 -> 63 | G21: 10 | H21: * | I21: 7 | J21: = | K21: =G21*I21 -> 70 | M21: 11 | N21: * | O21: 7 | P21: = | Q21: =M21*O21 -> 77 | S21: 12 | T21: * | U21: 7 | V21: = | W21: =S21*U21 -> 84 | Y21: 13 | Z21: * | AA21: 7 | AB21: = | AC21: =Y21*AA21 -> 91 | AE21: 14 | AF21: * | AG21: 7 | AH21: = | AI21: =AE21*AG21 -> 98 | AK21: 15 | AL21: * | AM21: 7 | AN21: = | AO21: =AK21*AM21 -> 105
A22: 9 | B22: * | C22: 8 | D22: = | E22: =A22*C22 -> 72 | G22: 10 | H22: * | I22: 8 | J22: = | K22: =G22*I22 -> 80 | M22: 11 | N22: * | O22: 8 | P22: = | Q22: =M22*O22 -> 88 | S22: 12 | T22: * | U22: 8 | V22: = | W22: =S22*U22 -> 96 | Y22: 13 | Z22: * | AA22: 8 | AB22: = | AC22: =Y22*AA22 -> 104 | AE22: 14 | AF22: * | AG22: 8 | AH22: = | AI22: =AE22*AG22 -> 112 | AK22: 15 | AL22: * | AM22: 8 | AN22: = | AO22: =AK22*AM22 -> 120
A23: 9 | B23: * | C23: 9 | D23: = | E23: =A23*C23 -> 81 | G23: 10 | H23: * | I23: 9 | J23: = | K23: =G23*I23 -> 90 | M23: 11 | N23: * | O23: 9 | P23: = | Q23: =M23*O23 -> 99 | S23: 12 | T23: * | U23: 9 | V23: = | W23: =S23*U23 -> 108 | Y23: 13 | Z23: * | AA23: 9 | AB23: = | AC23: =Y23*AA23 -> 117 | AE23: 14 | AF23: * | AG23: 9 | AH23: = | AI23: =AE23*AG23 -> 126 | AK23: 15 | AL23: * | AM23: 9 | AN23: = | AO23: =AK23*AM23 -> 135
A25: 16 단 | G25: 17 단 | M25: 18 단 | S25: 19 단 | Y25: 20 단 | AE25: 21 단 | AK25: 22 단
A26: 16 | B26: * | C26: 1 | D26: = | E26: =A26*C26 -> 16 | G26: 17 | H26: * | I26: 1 | J26: = | K26: =G26*I26 -> 17 | M26: 18 | N26: * | O26: 1 | P26: = | Q26: =M26*O26 -> 18 | S26: 19 | T26: * | U26: 1 | V26: = | W26: =S26*U26 -> 19 | Y26: 20 | Z26: * | AA26: 1 | AB26: = | AC26: =Y26*AA26 -> 20 | AE26: 21 | AF26: * | AG26: 1 | AH26: = | AI26: =AE26*AG26 -> 21 | AK26: 22 | AL26: * | AM26: 1 | AN26: = | AO26: =AK26*AM26 -> 22
A27: 16 | B27: * | C27: 2 | D27: = | E27: =A27*C27 -> 32 | G27: 17 | H27: * | I27: 2 | J27: = | K27: =G27*I27 -> 34 | M27: 18 | N27: * | O27: 2 | P27: = | Q27: =M27*O27 -> 36 | S27: 19 | T27: * | U27: 2 | V27: = | W27: =S27*U27 -> 38 | Y27: 20 | Z27: * | AA27: 2 | AB27: = | AC27: =Y27*AA27 -> 40 | AE27: 21 | AF27: * | AG27: 2 | AH27: = | AI27: =AE27*AG27 -> 42 | AK27: 22 | AL27: * | AM27: 2 | AN27: = | AO27: =AK27*AM27 -> 44
A28: 16 | B28: * | C28: 3 | D28: = | E28: =A28*C28 -> 48 | G28: 17 | H28: * | I28: 3 | J28: = | K28: =G28*I28 -> 51 | M28: 18 | N28: * | O28: 3 | P28: = | Q28: =M28*O28 -> 54 | S28: 19 | T28: * | U28: 3 | V28: = | W28: =S28*U28 -> 57 | Y28: 20 | Z28: * | AA28: 3 | AB28: = | AC28: =Y28*AA28 -> 60 | AE28: 21 | AF28: * | AG28: 3 | AH28: = | AI28: =AE28*AG28 -> 63 | AK28: 22 | AL28: * | AM28: 3 | AN28: = | AO28: =AK28*AM28 -> 66
A29: 16 | B29: * | C29: 4 | D29: = | E29: =A29*C29 -> 64 | G29: 17 | H29: * | I29: 4 | J29: = | K29: =G29*I29 -> 68 | M29: 18 | N29: * | O29: 4 | P29: = | Q29: =M29*O29 -> 72 | S29: 19 | T29: * | U29: 4 | V29: = | W29: =S29*U29 -> 76 | Y29: 20 | Z29: * | AA29: 4 | AB29: = | AC29: =Y29*AA29 -> 80 | AE29: 21 | AF29: * | AG29: 4 | AH29: = | AI29: =AE29*AG29 -> 84 | AK29: 22 | AL29: * | AM29: 4 | AN29: = | AO29: =AK29*AM29 -> 88
A30: 16 | B30: * | C30: 5 | D30: = | E30: =A30*C30 -> 80 | G30: 17 | H30: * | I30: 5 | J30: = | K30: =G30*I30 -> 85 | M30: 18 | N30: * | O30: 5 | P30: = | Q30: =M30*O30 -> 90 | S30: 19 | T30: * | U30: 5 | V30: = | W30: =S30*U30 -> 95 | Y30: 20 | Z30: * | AA30: 5 | AB30: = | AC30: =Y30*AA30 -> 100 | AE30: 21 | AF30: * | AG30: 5 | AH30: = | AI30: =AE30*AG30 -> 105 | AK30: 22 | AL30: * | AM30: 5 | AN30: = | AO30: =AK30*AM30 -> 110
A31: 16 | B31: * | C31: 6 | D31: = | E31: =A31*C31 -> 96 | G31: 17 | H31: * | I31: 6 | J31: = | K31: =G31*I31 -> 102 | M31: 18 | N31: * | O31: 6 | P31: = | Q31: =M31*O31 -> 108 | S31: 19 | T31: * | U31: 6 | V31: = | W31: =S31*U31 -> 114 | Y31: 20 | Z31: * | AA31: 6 | AB31: = | AC31: =Y31*AA31 -> 120 | AE31: 21 | AF31: * | AG31: 6 | AH31: = | AI31: =AE31*AG31 -> 126 | AK31: 22 | AL31: * | AM31: 6 | AN31: = | AO31: =AK31*AM31 -> 132
A32: 16 | B32: * | C32: 7 | D32: = | E32: =A32*C32 -> 112 | G32: 17 | H32: * | I32: 7 | J32: = | K32: =G32*I32 -> 119 | M32: 18 | N32: * | O32: 7 | P32: = | Q32: =M32*O32 -> 126 | S32: 19 | T32: * | U32: 7 | V32: = | W32: =S32*U32 -> 133 | Y32: 20 | Z32: * | AA32: 7 | AB32: = | AC32: =Y32*AA32 -> 140 | AE32: 21 | AF32: * | AG32: 7 | AH32: = | AI32: =AE32*AG32 -> 147 | AK32: 22 | AL32: * | AM32: 7 | AN32: = | AO32: =AK32*AM32 -> 154
A33: 16 | B33: * | C33: 8 | D33: = | E33: =A33*C33 -> 128 | G33: 17 | H33: * | I33: 8 | J33: = | K33: =G33*I33 -> 136 | M33: 18 | N33: * | O33: 8 | P33: = | Q33: =M33*O33 -> 144 | S33: 19 | T33: * | U33: 8 | V33: = | W33: =S33*U33 -> 152 | Y33: 20 | Z33: * | AA33: 8 | AB33: = | AC33: =Y33*AA33 -> 160 | AE33: 21 | AF33: * | AG33: 8 | AH33: = | AI33: =AE33*AG33 -> 168 | AK33: 22 | AL33: * | AM33: 8 | AN33: = | AO33: =AK33*AM33 -> 176
A34: 16 | B34: * | C34: 9 | D34: = | E34: =A34*C34 -> 144 | G34: 17 | H34: * | I34: 9 | J34: = | K34: =G34*I34 -> 153 | M34: 18 | N34: * | O34: 9 | P34: = | Q34: =M34*O34 -> 162 | S34: 19 | T34: * | U34: 9 | V34: = | W34: =S34*U34 -> 171 | Y34: 20 | Z34: * | AA34: 9 | AB34: = | AC34: =Y34*AA34 -> 180 | AE34: 21 | AF34: * | AG34: 9 | AH34: = | AI34: =AE34*AG34 -> 189 | AK34: 22 | AL34: * | AM34: 9 | AN34: = | AO34: =AK34*AM34 -> 198
A36: 23 단 | G36: 24 단 | M36: 25 단 | S36: 26 단 | Y36: 27 단 | AE36: 28 단 | AK36: 29 단
A37: 23 | B37: * | C37: 1 | D37: = | E37: =A37*C37 -> 23 | G37: 24 | H37: * | I37: 1 | J37: = | K37: =G37*I37 -> 24 | M37: 25 | N37: * | O37: 1 | P37: = | Q37: =M37*O37 -> 25 | S37: 26 | T37: * | U37: 1 | V37: = | W37: =S37*U37 -> 26 | Y37: 27 | Z37: * | AA37: 1 | AB37: = | AC37: =Y37*AA37 -> 27 | AE37: 28 | AF37: * | AG37: 1 | AH37: = | AI37: =AE37*AG37 -> 28 | AK37: 29 | AL37: * | AM37: 1 | AN37: = | AO37: =AK37*AM37 -> 29
A38: 23 | B38: * | C38: 2 | D38: = | E38: =A38*C38 -> 46 | G38: 24 | H38: * | I38: 2 | J38: = | K38: =G38*I38 -> 48 | M38: 25 | N38: * | O38: 2 | P38: = | Q38: =M38*O38 -> 50 | S38: 26 | T38: * | U38: 2 | V38: = | W38: =S38*U38 -> 52 | Y38: 27 | Z38: * | AA38: 2 | AB38: = | AC38: =Y38*AA38 -> 54 | AE38: 28 | AF38: * | AG38: 2 | AH38: = | AI38: =AE38*AG38 -> 56 | AK38: 29 | AL38: * | AM38: 2 | AN38: = | AO38: =AK38*AM38 -> 58
A39: 23 | B39: * | C39: 3 | D39: = | E39: =A39*C39 -> 69 | G39: 24 | H39: * | I39: 3 | J39: = | K39: =G39*I39 -> 72 | M39: 25 | N39: * | O39: 3 | P39: = | Q39: =M39*O39 -> 75 | S39: 26 | T39: * | U39: 3 | V39: = | W39: =S39*U39 -> 78 | Y39: 27 | Z39: * | AA39: 3 | AB39: = | AC39: =Y39*AA39 -> 81 | AE39: 28 | AF39: * | AG39: 3 | AH39: = | AI39: =AE39*AG39 -> 84 | AK39: 29 | AL39: * | AM39: 3 | AN39: = | AO39: =AK39*AM39 -> 87
A40: 23 | B40: * | C40: 4 | D40: = | E40: =A40*C40 -> 92 | G40: 24 | H40: * | I40: 4 | J40: = | K40: =G40*I40 -> 96 | M40: 25 | N40: * | O40: 4 | P40: = | Q40: =M40*O40 -> 100 | S40: 26 | T40: * | U40: 4 | V40: = | W40: =S40*U40 -> 104 | Y40: 27 | Z40: * | AA40: 4 | AB40: = | AC40: =Y40*AA40 -> 108 | AE40: 28 | AF40: * | AG40: 4 | AH40: = | AI40: =AE40*AG40 -> 112 | AK40: 29 | AL40: * | AM40: 4 | AN40: = | AO40: =AK40*AM40 -> 116
A41: 23 | B41: * | C41: 5 | D41: = | E41: =A41*C41 -> 115 | G41: 24 | H41: * | I41: 5 | J41: = | K41: =G41*I41 -> 120 | M41: 25 | N41: * | O41: 5 | P41: = | Q41: =M41*O41 -> 125 | S41: 26 | T41: * | U41: 5 | V41: = | W41: =S41*U41 -> 130 | Y41: 27 | Z41: * | AA41: 5 | AB41: = | AC41: =Y41*AA41 -> 135 | AE41: 28 | AF41: * | AG41: 5 | AH41: = | AI41: =AE41*AG41 -> 140 | AK41: 29 | AL41: * | AM41: 5 | AN41: = | AO41: =AK41*AM41 -> 145
A42: 23 | B42: * | C42: 6 | D42: = | E42: =A42*C42 -> 138 | G42: 24 | H42: * | I42: 6 | J42: = | K42: =G42*I42 -> 144 | M42: 25 | N42: * | O42: 6 | P42: = | Q42: =M42*O42 -> 150 | S42: 26 | T42: * | U42: 6 | V42: = | W42: =S42*U42 -> 156 | Y42: 27 | Z42: * | AA42: 6 | AB42: = | AC42: =Y42*AA42 -> 162 | AE42: 28 | AF42: * | AG42: 6 | AH42: = | AI42: =AE42*AG42 -> 168 | AK42: 29 | AL42: * | AM42: 6 | AN42: = | AO42: =AK42*AM42 -> 174
A43: 23 | B43: * | C43: 7 | D43: = | E43: =A43*C43 -> 161 | G43: 24 | H43: * | I43: 7 | J43: = | K43: =G43*I43 -> 168 | M43: 25 | N43: * | O43: 7 | P43: = | Q43: =M43*O43 -> 175 | S43: 26 | T43: * | U43: 7 | V43: = | W43: =S43*U43 -> 182 | Y43: 27 | Z43: * | AA43: 7 | AB43: = | AC43: =Y43*AA43 -> 189 | AE43: 28 | AF43: * | AG43: 7 | AH43: = | AI43: =AE43*AG43 -> 196 | AK43: 29 | AL43: * | AM43: 7 | AN43: = | AO43: =AK43*AM43 -> 203
A44: 23 | B44: * | C44: 8 | D44: = | E44: =A44*C44 -> 184 | G44: 24 | H44: * | I44: 8 | J44: = | K44: =G44*I44 -> 192 | M44: 25 | N44: * | O44: 8 | P44: = | Q44: =M44*O44 -> 200 | S44: 26 | T44: * | U44: 8 | V44: = | W44: =S44*U44 -> 208 | Y44: 27 | Z44: * | AA44: 8 | AB44: = | AC44: =Y44*AA44 -> 216 | AE44: 28 | AF44: * | AG44: 8 | AH44: = | AI44: =AE44*AG44 -> 224 | AK44: 29 | AL44: * | AM44: 8 | AN44: = | AO44: =AK44*AM44 -> 232
A45: 23 | B45: * | C45: 9 | D45: = | E45: =A45*C45 -> 207 | G45: 24 | H45: * | I45: 9 | J45: = | K45: =G45*I45 -> 216 | M45: 25 | N45: * | O45: 9 | P45: = | Q45: =M45*O45 -> 225 | S45: 26 | T45: * | U45: 9 | V45: = | W45: =S45*U45 -> 234 | Y45: 27 | Z45: * | AA45: 9 | AB45: = | AC45: =Y45*AA45 -> 243 | AE45: 28 | AF45: * | AG45: 9 | AH45: = | AI45: =AE45*AG45 -> 252 | AK45: 29 | AL45: * | AM45: 9 | AN45: = | AO45: =AK45*AM45 -> 261
A47: 30 단 | G47: 31 단 | M47: 32 단 | S47: 33 단 | Y47: 34 단 | AE47: 35 단 | AK47: 36 단
A48: 30 | B48: * | C48: 1 | D48: = | E48: =A48*C48 -> 30 | G48: 31 | H48: * | I48: 1 | J48: = | K48: =G48*I48 -> 31 | M48: 32 | N48: * | O48: 1 | P48: = | Q48: =M48*O48 -> 32 | S48: 33 | T48: * | U48: 1 | V48: = | W48: =S48*U48 -> 33 | Y48: 34 | Z48: * | AA48: 1 | AB48: = | AC48: =Y48*AA48 -> 34 | AE48: 35 | AF48: * | AG48: 1 | AH48: = | AI48: =AE48*AG48 -> 35 | AK48: 36 | AL48: * | AM48: 1 | AN48: = | AO48: =AK48*AM48 -> 36
A49: 30 | B49: * | C49: 2 | D49: = | E49: =A49*C49 -> 60 | G49: 31 | H49: * | I49: 2 | J49: = | K49: =G49*I49 -> 62 | M49: 32 | N49: * | O49: 2 | P49: = | Q49: =M49*O49 -> 64 | S49: 33 | T49: * | U49: 2 | V49: = | W49: =S49*U49 -> 66 | Y49: 34 | Z49: * | AA49: 2 | AB49: = | AC49: =Y49*AA49 -> 68 | AE49: 35 | AF49: * | AG49: 2 | AH49: = | AI49: =AE49*AG49 -> 70 | AK49: 36 | AL49: * | AM49: 2 | AN49: = | AO49: =AK49*AM49 -> 72
A50: 30 | B50: * | C50: 3 | D50: = | E50: =A50*C50 -> 90 | G50: 31 | H50: * | I50: 3 | J50: = | K50: =G50*I50 -> 93 | M50: 32 | N50: * | O50: 3 | P50: = | Q50: =M50*O50 -> 96 | S50: 33 | T50: * | U50: 3 | V50: = | W50: =S50*U50 -> 99 | Y50: 34 | Z50: * | AA50: 3 | AB50: = | AC50: =Y50*AA50 -> 102 | AE50: 35 | AF50: * | AG50: 3 | AH50: = | AI50: =AE50*AG50 -> 105 | AK50: 36 | AL50: * | AM50: 3 | AN50: = | AO50: =AK50*AM50 -> 108
A51: 30 | B51: * | C51: 4 | D51: = | E51: =A51*C51 -> 120 | G51: 31 | H51: * | I51: 4 | J51: = | K51: =G51*I51 -> 124 | M51: 32 | N51: * | O51: 4 | P51: = | Q51: =M51*O51 -> 128 | S51: 33 | T51: * | U51: 4 | V51: = | W51: =S51*U51 -> 132 | Y51: 34 | Z51: * | AA51: 4 | AB51: = | AC51: =Y51*AA51 -> 136 | AE51: 35 | AF51: * | AG51: 4 | AH51: = | AI51: =AE51*AG51 -> 140 | AK51: 36 | AL51: * | AM51: 4 | AN51: = | AO51: =AK51*AM51 -> 144
A52: 30 | B52: * | C52: 5 | D52: = | E52: =A52*C52 -> 150 | G52: 31 | H52: * | I52: 5 | J52: = | K52: =G52*I52 -> 155 | M52: 32 | N52: * | O52: 5 | P52: = | Q52: =M52*O52 -> 160 | S52: 33 | T52: * | U52: 5 | V52: = | W52: =S52*U52 -> 165 | Y52: 34 | Z52: * | AA52: 5 | AB52: = | AC52: =Y52*AA52 -> 170 | AE52: 35 | AF52: * | AG52: 5 | AH52: = | AI52: =AE52*AG52 -> 175 | AK52: 36 | AL52: * | AM52: 5 | AN52: = | AO52: =AK52*AM52 -> 180
A53: 30 | B53: * | C53: 6 | D53: = | E53: =A53*C53 -> 180 | G53: 31 | H53: * | I53: 6 | J53: = | K53: =G53*I53 -> 186 | M53: 32 | N53: * | O53: 6 | P53: = | Q53: =M53*O53 -> 192 | S53: 33 | T53: * | U53: 6 | V53: = | W53: =S53*U53 -> 198 | Y53: 34 | Z53: * | AA53: 6 | AB53: = | AC53: =Y53*AA53 -> 204 | AE53: 35 | AF53: * | AG53: 6 | AH53: = | AI53: =AE53*AG53 -> 210 | AK53: 36 | AL53: * | AM53: 6 | AN53: = | AO53: =AK53*AM53 -> 216
A54: 30 | B54: * | C54: 7 | D54: = | E54: =A54*C54 -> 210 | G54: 31 | H54: * | I54: 7 | J54: = | K54: =G54*I54 -> 217 | M54: 32 | N54: * | O54: 7 | P54: = | Q54: =M54*O54 -> 224 | S54: 33 | T54: * | U54: 7 | V54: = | W54: =S54*U54 -> 231 | Y54: 34 | Z54: * | AA54: 7 | AB54: = | AC54: =Y54*AA54 -> 238 | AE54: 35 | AF54: * | AG54: 7 | AH54: = | AI54: =AE54*AG54 -> 245 | AK54: 36 | AL54: * | AM54: 7 | AN54: = | AO54: =AK54*AM54 -> 252
A55: 30 | B55: * | C55: 8 | D55: = | E55: =A55*C55 -> 240 | G55: 31 | H55: * | I55: 8 | J55: = | K55: =G55*I55 -> 248 | M55: 32 | N55: * | O55: 8 | P55: = | Q55: =M55*O55 -> 256 | S55: 33 | T55: * | U55: 8 | V55: = | W55: =S55*U55 -> 264 | Y55: 34 | Z55: * | AA55: 8 | AB55: = | AC55: =Y55*AA55 -> 272 | AE55: 35 | AF55: * | AG55: 8 | AH55: = | AI55: =AE55*AG55 -> 280 | AK55: 36 | AL55: * | AM55: 8 | AN55: = | AO55: =AK55*AM55 -> 288
A56: 30 | B56: * | C56: 9 | D56: = | E56: =A56*C56 -> 270 | G56: 31 | H56: * | I56: 9 | J56: = | K56: =G56*I56 -> 279 | M56: 32 | N56: * | O56: 9 | P56: = | Q56: =M56*O56 -> 288 | S56: 33 | T56: * | U56: 9 | V56: = | W56: =S56*U56 -> 297 | Y56: 34 | Z56: * | AA56: 9 | AB56: = | AC56: =Y56*AA56 -> 306 | AE56: 35 | AF56: * | AG56: 9 | AH56: = | AI56: =AE56*AG56 -> 315 | AK56: 36 | AL56: * | AM56: 9 | AN56: = | AO56: =AK56*AM56 -> 324
A58: 37 단 | G58: 38 단 | M58: 39 단 | S58: 40 단 | Y58: 41 단 | AE58: 42 단 | AK58: 43 단
A59: 37 | B59: * | C59: 1 | D59: = | E59: =A59*C59 -> 37 | G59: 38 | H59: * | I59: 1 | J59: = | K59: =G59*I59 -> 38 | M59: 39 | N59: * | O59: 1 | P59: = | Q59: =M59*O59 -> 39 | S59: 40 | T59: * | U59: 1 | V59: = | W59: =S59*U59 -> 40 | Y59: 41 | Z59: * | AA59: 1 | AB59: = | AC59: =Y59*AA59 -> 41 | AE59: 42 | AF59: * | AG59: 1 | AH59: = | AI59: =AE59*AG59 -> 42 | AK59: 43 | AL59: * | AM59: 1 | AN59: = | AO59: =AK59*AM59 -> 43
A60: 37 | B60: * | C60: 2 | D60: = | E60: =A60*C60 -> 74 | G60: 38 | H60: * | I60: 2 | J60: = | K60: =G60*I60 -> 76 | M60: 39 | N60: * | O60: 2 | P60: = | Q60: =M60*O60 -> 78 | S60: 40 | T60: * | U60: 2 | V60: = | W60: =S60*U60 -> 80 | Y60: 41 | Z60: * | AA60: 2 | AB60: = | AC60: =Y60*AA60 -> 82 | AE60: 42 | AF60: * | AG60: 2 | AH60: = | AI60: =AE60*AG60 -> 84 | AK60: 43 | AL60: * | AM60: 2 | AN60: = | AO60: =AK60*AM60 -> 86
A61: 37 | B61: * | C61: 3 | D61: = | E61: =A61*C61 -> 111 | G61: 38 | H61: * | I61: 3 | J61: = | K61: =G61*I61 -> 114 | M61: 39 | N61: * | O61: 3 | P61: = | Q61: =M61*O61 -> 117 | S61: 40 | T61: * | U61: 3 | V61: = | W61: =S61*U61 -> 120 | Y61: 41 | Z61: * | AA61: 3 | AB61: = | AC61: =Y61*AA61 -> 123 | AE61: 42 | AF61: * | AG61: 3 | AH61: = | AI61: =AE61*AG61 -> 126 | AK61: 43 | AL61: * | AM61: 3 | AN61: = | AO61: =AK61*AM61 -> 129
A62: 37 | B62: * | C62: 4 | D62: = | E62: =A62*C62 -> 148 | G62: 38 | H62: * | I62: 4 | J62: = | K62: =G62*I62 -> 152 | M62: 39 | N62: * | O62: 4 | P62: = | Q62: =M62*O62 -> 156 | S62: 40 | T62: * | U62: 4 | V62: = | W62: =S62*U62 -> 160 | Y62: 41 | Z62: * | AA62: 4 | AB62: = | AC62: =Y62*AA62 -> 164 | AE62: 42 | AF62: * | AG62: 4 | AH62: = | AI62: =AE62*AG62 -> 168 | AK62: 43 | AL62: * | AM62: 4 | AN62: = | AO62: =AK62*AM62 -> 172
A63: 37 | B63: * | C63: 5 | D63: = | E63: =A63*C63 -> 185 | G63: 38 | H63: * | I63: 5 | J63: = | K63: =G63*I63 -> 190 | M63: 39 | N63: * | O63: 5 | P63: = | Q63: =M63*O63 -> 195 | S63: 40 | T63: * | U63: 5 | V63: = | W63: =S63*U63 -> 200 | Y63: 41 | Z63: * | AA63: 5 | AB63: = | AC63: =Y63*AA63 -> 205 | AE63: 42 | AF63: * | AG63: 5 | AH63: = | AI63: =AE63*AG63 -> 210 | AK63: 43 | AL63: * | AM63: 5 | AN63: = | AO63: =AK63*AM63 -> 215
A64: 37 | B64: * | C64: 6 | D64: = | E64: =A64*C64 -> 222 | G64: 38 | H64: * | I64: 6 | J64: = | K64: =G64*I64 -> 228 | M64: 39 | N64: * | O64: 6 | P64: = | Q64: =M64*O64 -> 234 | S64: 40 | T64: * | U64: 6 | V64: = | W64: =S64*U64 -> 240 | Y64: 41 | Z64: * | AA64: 6 | AB64: = | AC64: =Y64*AA64 -> 246 | AE64: 42 | AF64: * | AG64: 6 | AH64: = | AI64: =AE64*AG64 -> 252 | AK64: 43 | AL64: * | AM64: 6 | AN64: = | AO64: =AK64*AM64 -> 258
A65: 37 | B65: * | C65: 7 | D65: = | E65: =A65*C65 -> 259 | G65: 38 | H65: * | I65: 7 | J65: = | K65: =G65*I65 -> 266 | M65: 39 | N65: * | O65: 7 | P65: = | Q65: =M65*O65 -> 273 | S65: 40 | T65: * | U65: 7 | V65: = | W65: =S65*U65 -> 280 | Y65: 41 | Z65: * | AA65: 7 | AB65: = | AC65: =Y65*AA65 -> 287 | AE65: 42 | AF65: * | AG65: 7 | AH65: = | AI65: =AE65*AG65 -> 294 | AK65: 43 | AL65: * | AM65: 7 | AN65: = | AO65: =AK65*AM65 -> 301
A66: 37 | B66: * | C66: 8 | D66: = | E66: =A66*C66 -> 296 | G66: 38 | H66: * | I66: 8 | J66: = | K66: =G66*I66 -> 304 | M66: 39 | N66: * | O66: 8 | P66: = | Q66: =M66*O66 -> 312 | S66: 40 | T66: * | U66: 8 | V66: = | W66: =S66*U66 -> 320 | Y66: 41 | Z66: * | AA66: 8 | AB66: = | AC66: =Y66*AA66 -> 328 | AE66: 42 | AF66: * | AG66: 8 | AH66: = | AI66: =AE66*AG66 -> 336 | AK66: 43 | AL66: * | AM66: 8 | AN66: = | AO66: =AK66*AM66 -> 344
A67: 37 | B67: * | C67: 9 | D67: = | E67: =A67*C67 -> 333 | G67: 38 | H67: * | I67: 9 | J67: = | K67: =G67*I67 -> 342 | M67: 39 | N67: * | O67: 9 | P67: = | Q67: =M67*O67 -> 351 | S67: 40 | T67: * | U67: 9 | V67: = | W67: =S67*U67 -> 360 | Y67: 41 | Z67: * | AA67: 9 | AB67: = | AC67: =Y67*AA67 -> 369 | AE67: 42 | AF67: * | AG67: 9 | AH67: = | AI67: =AE67*AG67 -> 378 | AK67: 43 | AL67: * | AM67: 9 | AN67: = | AO67: =AK67*AM67 -> 387
A69: 44 단 | G69: 45 단 | M69: 46 단 | S69: 47 단 | Y69: 48 단 | AE69: 49 단 | AK69: 50 단
A70: 44 | B70: * | C70: 1 | D70: = | E70: =A70*C70 -> 44 | G70: 45 | H70: * | I70: 1 | J70: = | K70: =G70*I70 -> 45 | M70: 46 | N70: * | O70: 1 | P70: = | Q70: =M70*O70 -> 46 | S70: 47 | T70: * | U70: 1 | V70: = | W70: =S70*U70 -> 47 | Y70: 48 | Z70: * | AA70: 1 | AB70: = | AC70: =Y70*AA70 -> 48 | AE70: 49 | AF70: * | AG70: 1 | AH70: = | AI70: =AE70*AG70 -> 49 | AK70: 50 | AL70: * | AM70: 1 | AN70: = | AO70: =AK70*AM70 -> 50
A71: 44 | B71: * | C71: 2 | D71: = | E71: =A71*C71 -> 88 | G71: 45 | H71: * | I71: 2 | J71: = | K71: =G71*I71 -> 90 | M71: 46 | N71: * | O71: 2 | P71: = | Q71: =M71*O71 -> 92 | S71: 47 | T71: * | U71: 2 | V71: = | W71: =S71*U71 -> 94 | Y71: 48 | Z71: * | AA71: 2 | AB71: = | AC71: =Y71*AA71 -> 96 | AE71: 49 | AF71: * | AG71: 2 | AH71: = | AI71: =AE71*AG71 -> 98 | AK71: 50 | AL71: * | AM71: 2 | AN71: = | AO71: =AK71*AM71 -> 100
A72: 44 | B72: * | C72: 3 | D72: = | E72: =A72*C72 -> 132 | G72: 45 | H72: * | I72: 3 | J72: = | K72: =G72*I72 -> 135 | M72: 46 | N72: * | O72: 3 | P72: = | Q72: =M72*O72 -> 138 | S72: 47 | T72: * | U72: 3 | V72: = | W72: =S72*U72 -> 141 | Y72: 48 | Z72: * | AA72: 3 | AB72: = | AC72: =Y72*AA72 -> 144 | AE72: 49 | AF72: * | AG72: 3 | AH72: = | AI72: =AE72*AG72 -> 147 | AK72: 50 | AL72: * | AM72: 3 | AN72: = | AO72: =AK72*AM72 -> 150
A73: 44 | B73: * | C73: 4 | D73: = | E73: =A73*C73 -> 176 | G73: 45 | H73: * | I73: 4 | J73: = | K73: =G73*I73 -> 180 | M73: 46 | N73: * | O73: 4 | P73: = | Q73: =M73*O73 -> 184 | S73: 47 | T73: * | U73: 4 | V73: = | W73: =S73*U73 -> 188 | Y73: 48 | Z73: * | AA73: 4 | AB73: = | AC73: =Y73*AA73 -> 192 | AE73: 49 | AF73: * | AG73: 4 | AH73: = | AI73: =AE73*AG73 -> 196 | AK73: 50 | AL73: * | AM73: 4 | AN73: = | AO73: =AK73*AM73 -> 200
A74: 44 | B74: * | C74: 5 | D74: = | E74: =A74*C74 -> 220 | G74: 45 | H74: * | I74: 5 | J74: = | K74: =G74*I74 -> 225 | M74: 46 | N74: * | O74: 5 | P74: = | Q74: =M74*O74 -> 230 | S74: 47 | T74: * | U74: 5 | V74: = | W74: =S74*U74 -> 235 | Y74: 48 | Z74: * | AA74: 5 | AB74: = | AC74: =Y74*AA74 -> 240 | AE74: 49 | AF74: * | AG74: 5 | AH74: = | AI74: =AE74*AG74 -> 245 | AK74: 50 | AL74: * | AM74: 5 | AN74: = | AO74: =AK74*AM74 -> 250
A75: 44 | B75: * | C75: 6 | D75: = | E75: =A75*C75 -> 264 | G75: 45 | H75: * | I75: 6 | J75: = | K75: =G75*I75 -> 270 | M75: 46 | N75: * | O75: 6 | P75: = | Q75: =M75*O75 -> 276 | S75: 47 | T75: * | U75: 6 | V75: = | W75: =S75*U75 -> 282 | Y75: 48 | Z75: * | AA75: 6 | AB75: = | AC75: =Y75*AA75 -> 288 | AE75: 49 | AF75: * | AG75: 6 | AH75: = | AI75: =AE75*AG75 -> 294 | AK75: 50 | AL75: * | AM75: 6 | AN75: = | AO75: =AK75*AM75 -> 300
A76: 44 | B76: * | C76: 7 | D76: = | E76: =A76*C76 -> 308 | G76: 45 | H76: * | I76: 7 | J76: = | K76: =G76*I76 -> 315 | M76: 46 | N76: * | O76: 7 | P76: = | Q76: =M76*O76 -> 322 | S76: 47 | T76: * | U76: 7 | V76: = | W76: =S76*U76 -> 329 | Y76: 48 | Z76: * | AA76: 7 | AB76: = | AC76: =Y76*AA76 -> 336 | AE76: 49 | AF76: * | AG76: 7 | AH76: = | AI76: =AE76*AG76 -> 343 | AK76: 50 | AL76: * | AM76: 7 | AN76: = | AO76: =AK76*AM76 -> 350
A77: 44 | B77: * | C77: 8 | D77: = | E77: =A77*C77 -> 352 | G77: 45 | H77: * | I77: 8 | J77: = | K77: =G77*I77 -> 360 | M77: 46 | N77: * | O77: 8 | P77: = | Q77: =M77*O77 -> 368 | S77: 47 | T77: * | U77: 8 | V77: = | W77: =S77*U77 -> 376 | Y77: 48 | Z77: * | AA77: 8 | AB77: = | AC77: =Y77*AA77 -> 384 | AE77: 49 | AF77: * | AG77: 8 | AH77: = | AI77: =AE77*AG77 -> 392 | AK77: 50 | AL77: * | AM77: 8 | AN77: = | AO77: =AK77*AM77 -> 400
A78: 44 | B78: * | C78: 9 | D78: = | E78: =A78*C78 -> 396 | G78: 45 | H78: * | I78: 9 | J78: = | K78: =G78*I78 -> 405 | M78: 46 | N78: * | O78: 9 | P78: = | Q78: =M78*O78 -> 414 | S78: 47 | T78: * | U78: 9 | V78: = | W78: =S78*U78 -> 423 | Y78: 48 | Z78: * | AA78: 9 | AB78: = | AC78: =Y78*AA78 -> 432 | AE78: 49 | AF78: * | AG78: 9 | AH78: = | AI78: =AE78*AG78 -> 441 | AK78: 50 | AL78: * | AM78: 9 | AN78: = | AO78: =AK78*AM78 -> 450
A80: 51 단 | G80: 52 단 | M80: 53 단 | S80: 54 단 | Y80: 55 단 | AE80: 56 단 | AK80: 57 단
A81: 51 | B81: * | C81: 1 | D81: = | E81: =A81*C81 -> 51 | G81: 52 | H81: * | I81: 1 | J81: = | K81: =G81*I81 -> 52 | M81: 53 | N81: * | O81: 1 | P81: = | Q81: =M81*O81 -> 53 | S81: 54 | T81: * | U81: 1 | V81: = | W81: =S81*U81 -> 54 | Y81: 55 | Z81: * | AA81: 1 | AB81: = | AC81: =Y81*AA81 -> 55 | AE81: 56 | AF81: * | AG81: 1 | AH81: = | AI81: =AE81*AG81 -> 56 | AK81: 57 | AL81: * | AM81: 1 | AN81: = | AO81: =AK81*AM81 -> 57
A82: 51 | B82: * | C82: 2 | D82: = | E82: =A82*C82 -> 102 | G82: 52 | H82: * | I82: 2 | J82: = | K82: =G82*I82 -> 104 | M82: 53 | N82: * | O82: 2 | P82: = | Q82: =M82*O82 -> 106 | S82: 54 | T82: * | U82: 2 | V82: = | W82: =S82*U82 -> 108 | Y82: 55 | Z82: * | AA82: 2 | AB82: = | AC82: =Y82*AA82 -> 110 | AE82: 56 | AF82: * | AG82: 2 | AH82: = | AI82: =AE82*AG82 -> 112 | AK82: 57 | AL82: * | AM82: 2 | AN82: = | AO82: =AK82*AM82 -> 114
A83: 51 | B83: * | C83: 3 | D83: = | E83: =A83*C83 -> 153 | G83: 52 | H83: * | I83: 3 | J83: = | K83: =G83*I83 -> 156 | M83: 53 | N83: * | O83: 3 | P83: = | Q83: =M83*O83 -> 159 | S83: 54 | T83: * | U83: 3 | V83: = | W83: =S83*U83 -> 162 | Y83: 55 | Z83: * | AA83: 3 | AB83: = | AC83: =Y83*AA83 -> 165 | AE83: 56 | AF83: * | AG83: 3 | AH83: = | AI83: =AE83*AG83 -> 168 | AK83: 57 | AL83: * | AM83: 3 | AN83: = | AO83: =AK83*AM83 -> 171
A84: 51 | B84: * | C84: 4 | D84: = | E84: =A84*C84 -> 204 | G84: 52 | H84: * | I84: 4 | J84: = | K84: =G84*I84 -> 208 | M84: 53 | N84: * | O84: 4 | P84: = | Q84: =M84*O84 -> 212 | S84: 54 | T84: * | U84: 4 | V84: = | W84: =S84*U84 -> 216 | Y84: 55 | Z84: * | AA84: 4 | AB84: = | AC84: =Y84*AA84 -> 220 | AE84: 56 | AF84: * | AG84: 4 | AH84: = | AI84: =AE84*AG84 -> 224 | AK84: 57 | AL84: * | AM84: 4 | AN84: = | AO84: =AK84*AM84 -> 228
A85: 51 | B85: * | C85: 5 | D85: = | E85: =A85*C85 -> 255 | G85: 52 | H85: * | I85: 5 | J85: = | K85: =G85*I85 -> 260 | M85: 53 | N85: * | O85: 5 | P85: = | Q85: =M85*O85 -> 265 | S85: 54 | T85: * | U85: 5 | V85: = | W85: =S85*U85 -> 270 | Y85: 55 | Z85: * | AA85: 5 | AB85: = | AC85: =Y85*AA85 -> 275 | AE85: 56 | AF85: * | AG85: 5 | AH85: = | AI85: =AE85*AG85 -> 280 | AK85: 57 | AL85: * | AM85: 5 | AN85: = | AO85: =AK85*AM85 -> 285
A86: 51 | B86: * | C86: 6 | D86: = | E86: =A86*C86 -> 306 | G86: 52 | H86: * | I86: 6 | J86: = | K86: =G86*I86 -> 312 | M86: 53 | N86: * | O86: 6 | P86: = | Q86: =M86*O86 -> 318 | S86: 54 | T86: * | U86: 6 | V86: = | W86: =S86*U86 -> 324 | Y86: 55 | Z86: * | AA86: 6 | AB86: = | AC86: =Y86*AA86 -> 330 | AE86: 56 | AF86: * | AG86: 6 | AH86: = | AI86: =AE86*AG86 -> 336 | AK86: 57 | AL86: * | AM86: 6 | AN86: = | AO86: =AK86*AM86 -> 342
A87: 51 | B87: * | C87: 7 | D87: = | E87: =A87*C87 -> 357 | G87: 52 | H87: * | I87: 7 | J87: = | K87: =G87*I87 -> 364 | M87: 53 | N87: * | O87: 7 | P87: = | Q87: =M87*O87 -> 371 | S87: 54 | T87: * | U87: 7 | V87: = | W87: =S87*U87 -> 378 | Y87: 55 | Z87: * | AA87: 7 | AB87: = | AC87: =Y87*AA87 -> 385 | AE87: 56 | AF87: * | AG87: 7 | AH87: = | AI87: =AE87*AG87 -> 392 | AK87: 57 | AL87: * | AM87: 7 | AN87: = | AO87: =AK87*AM87 -> 399
A88: 51 | B88: * | C88: 8 | D88: = | E88: =A88*C88 -> 408 | G88: 52 | H88: * | I88: 8 | J88: = | K88: =G88*I88 -> 416 | M88: 53 | N88: * | O88: 8 | P88: = | Q88: =M88*O88 -> 424 | S88: 54 | T88: * | U88: 8 | V88: = | W88: =S88*U88 -> 432 | Y88: 55 | Z88: * | AA88: 8 | AB88: = | AC88: =Y88*AA88 -> 440 | AE88: 56 | AF88: * | AG88: 8 | AH88: = | AI88: =AE88*AG88 -> 448 | AK88: 57 | AL88: * | AM88: 8 | AN88: = | AO88: =AK88*AM88 -> 456
A89: 51 | B89: * | C89: 9 | D89: = | E89: =A89*C89 -> 459 | G89: 52 | H89: * | I89: 9 | J89: = | K89: =G89*I89 -> 468 | M89: 53 | N89: * | O89: 9 | P89: = | Q89: =M89*O89 -> 477 | S89: 54 | T89: * | U89: 9 | V89: = | W89: =S89*U89 -> 486 | Y89: 55 | Z89: * | AA89: 9 | AB89: = | AC89: =Y89*AA89 -> 495 | AE89: 56 | AF89: * | AG89: 9 | AH89: = | AI89: =AE89*AG89 -> 504 | AK89: 57 | AL89: * | AM89: 9 | AN89: = | AO89: =AK89*AM89 -> 513
A91: 58 단 | G91: 59 단 | M91: 60 단 | S91: 61 단 | Y91: 62 단 | AE91: 63 단 | AK91: 64 단
A92: 58 | B92: * | C92: 1 | D92: = | E92: =A92*C92 -> 58 | G92: 59 | H92: * | I92: 1 | J92: = | K92: =G92*I92 -> 59 | M92: 60 | N92: * | O92: 1 | P92: = | Q92: =M92*O92 -> 60 | S92: 61 | T92: * | U92: 1 | V92: = | W92: =S92*U92 -> 61 | Y92: 62 | Z92: * | AA92: 1 | AB92: = | AC92: =Y92*AA92 -> 62 | AE92: 63 | AF92: * | AG92: 1 | AH92: = | AI92: =AE92*AG92 -> 63 | AK92: 64 | AL92: * | AM92: 1 | AN92: = | AO92: =AK92*AM92 -> 64
A93: 58 | B93: * | C93: 2 | D93: = | E93: =A93*C93 -> 116 | G93: 59 | H93: * | I93: 2 | J93: = | K93: =G93*I93 -> 118 | M93: 60 | N93: * | O93: 2 | P93: = | Q93: =M93*O93 -> 120 | S93: 61 | T93: * | U93: 2 | V93: = | W93: =S93*U93 -> 122 | Y93: 62 | Z93: * | AA93: 2 | AB93: = | AC93: =Y93*AA93 -> 124 | AE93: 63 | AF93: * | AG93: 2 | AH93: = | AI93: =AE93*AG93 -> 126 | AK93: 64 | AL93: * | AM93: 2 | AN93: = | AO93: =AK93*AM93 -> 128
A94: 58 | B94: * | C94: 3 | D94: = | E94: =A94*C94 -> 174 | G94: 59 | H94: * | I94: 3 | J94: = | K94: =G94*I94 -> 177 | M94: 60 | N94: * | O94: 3 | P94: = | Q94: =M94*O94 -> 180 | S94: 61 | T94: * | U94: 3 | V94: = | W94: =S94*U94 -> 183 | Y94: 62 | Z94: * | AA94: 3 | AB94: = | AC94: =Y94*AA94 -> 186 | AE94: 63 | AF94: * | AG94: 3 | AH94: = | AI94: =AE94*AG94 -> 189 | AK94: 64 | AL94: * | AM94: 3 | AN94: = | AO94: =AK94*AM94 -> 192
A95: 58 | B95: * | C95: 4 | D95: = | E95: =A95*C95 -> 232 | G95: 59 | H95: * | I95: 4 | J95: = | K95: =G95*I95 -> 236 | M95: 60 | N95: * | O95: 4 | P95: = | Q95: =M95*O95 -> 240 | S95: 61 | T95: * | U95: 4 | V95: = | W95: =S95*U95 -> 244 | Y95: 62 | Z95: * | AA95: 4 | AB95: = | AC95: =Y95*AA95 -> 248 | AE95: 63 | AF95: * | AG95: 4 | AH95: = | AI95: =AE95*AG95 -> 252 | AK95: 64 | AL95: * | AM95: 4 | AN95: = | AO95: =AK95*AM95 -> 256
A96: 58 | B96: * | C96: 5 | D96: = | E96: =A96*C96 -> 290 | G96: 59 | H96: * | I96: 5 | J96: = | K96: =G96*I96 -> 295 | M96: 60 | N96: * | O96: 5 | P96: = | Q96: =M96*O96 -> 300 | S96: 61 | T96: * | U96: 5 | V96: = | W96: =S96*U96 -> 305 | Y96: 62 | Z96: * | AA96: 5 | AB96: = | AC96: =Y96*AA96 -> 310 | AE96: 63 | AF96: * | AG96: 5 | AH96: = | AI96: =AE96*AG96 -> 315 | AK96: 64 | AL96: * | AM96: 5 | AN96: = | AO96: =AK96*AM96 -> 320
A97: 58 | B97: * | C97: 6 | D97: = | E97: =A97*C97 -> 348 | G97: 59 | H97: * | I97: 6 | J97: = | K97: =G97*I97 -> 354 | M97: 60 | N97: * | O97: 6 | P97: = | Q97: =M97*O97 -> 360 | S97: 61 | T97: * | U97: 6 | V97: = | W97: =S97*U97 -> 366 | Y97: 62 | Z97: * | AA97: 6 | AB97: = | AC97: =Y97*AA97 -> 372 | AE97: 63 | AF97: * | AG97: 6 | AH97: = | AI97: =AE97*AG97 -> 378 | AK97: 64 | AL97: * | AM97: 6 | AN97: = | AO97: =AK97*AM97 -> 384
A98: 58 | B98: * | C98: 7 | D98: = | E98: =A98*C98 -> 406 | G98: 59 | H98: * | I98: 7 | J98: = | K98: =G98*I98 -> 413 | M98: 60 | N98: * | O98: 7 | P98: = | Q98: =M98*O98 -> 420 | S98: 61 | T98: * | U98: 7 | V98: = | W98: =S98*U98 -> 427 | Y98: 62 | Z98: * | AA98: 7 | AB98: = | AC98: =Y98*AA98 -> 434 | AE98: 63 | AF98: * | AG98: 7 | AH98: = | AI98: =AE98*AG98 -> 441 | AK98: 64 | AL98: * | AM98: 7 | AN98: = | AO98: =AK98*AM98 -> 448
A99: 58 | B99: * | C99: 8 | D99: = | E99: =A99*C99 -> 464 | G99: 59 | H99: * | I99: 8 | J99: = | K99: =G99*I99 -> 472 | M99: 60 | N99: * | O99: 8 | P99: = | Q99: =M99*O99 -> 480 | S99: 61 | T99: * | U99: 8 | V99: = | W99: =S99*U99 -> 488 | Y99: 62 | Z99: * | AA99: 8 | AB99: = | AC99: =Y99*AA99 -> 496 | AE99: 63 | AF99: * | AG99: 8 | AH99: = | AI99: =AE99*AG99 -> 504 | AK99: 64 | AL99: * | AM99: 8 | AN99: = | AO99: =AK99*AM99 -> 512
A100: 58 | B100: * | C100: 9 | D100: = | E100: =A100*C100 -> 522 | G100: 59 | H100: * | I100: 9 | J100: = | K100: =G100*I100 -> 531 | M100: 60 | N100: * | O100: 9 | P100: = | Q100: =M100*O100 -> 540 | S100: 61 | T100: * | U100: 9 | V100: = | W100: =S100*U100 -> 549 | Y100: 62 | Z100: * | AA100: 9 | AB100: = | AC100: =Y100*AA100 -> 558 | AE100: 63 | AF100: * | AG100: 9 | AH100: = | AI100: =AE100*AG100 -> 567 | AK100: 64 | AL100: * | AM100: 9 | AN100: = | AO100: =AK100*AM100 -> 576
A102: 65 단 | G102: 66 단 | M102: 67 단 | S102: 68 단 | Y102: 69 단 | AE102: 70 단 | AK102: 71 단
A103: 65 | B103: * | C103: 1 | D103: = | E103: =A103*C103 -> 65 | G103: 66 | H103: * | I103: 1 | J103: = | K103: =G103*I103 -> 66 | M103: 67 | N103: * | O103: 1 | P103: = | Q103: =M103*O103 -> 67 | S103: 68 | T103: * | U103: 1 | V103: = | W103: =S103*U103 -> 68 | Y103: 69 | Z103: * | AA103: 1 | AB103: = | AC103: =Y103*AA103 -> 69 | AE103: 70 | AF103: * | AG103: 1 | AH103: = | AI103: =AE103*AG103 -> 70 | AK103: 71 | AL103: * | AM103: 1 | AN103: = | AO103: =AK103*AM103 -> 71
A104: 65 | B104: * | C104: 2 | D104: = | E104: =A104*C104 -> 130 | G104: 66 | H104: * | I104: 2 | J104: = | K104: =G104*I104 -> 132 | M104: 67 | N104: * | O104: 2 | P104: = | Q104: =M104*O104 -> 134 | S104: 68 | T104: * | U104: 2 | V104: = | W104: =S104*U104 -> 136 | Y104: 69 | Z104: * | AA104: 2 | AB104: = | AC104: =Y104*AA104 -> 138 | AE104: 70 | AF104: * | AG104: 2 | AH104: = | AI104: =AE104*AG104 -> 140 | AK104: 71 | AL104: * | AM104: 2 | AN104: = | AO104: =AK104*AM104 -> 142
A105: 65 | B105: * | C105: 3 | D105: = | E105: =A105*C105 -> 195 | G105: 66 | H105: * | I105: 3 | J105: = | K105: =G105*I105 -> 198 | M105: 67 | N105: * | O105: 3 | P105: = | Q105: =M105*O105 -> 201 | S105: 68 | T105: * | U105: 3 | V105: = | W105: =S105*U105 -> 204 | Y105: 69 | Z105: * | AA105: 3 | AB105: = | AC105: =Y105*AA105 -> 207 | AE105: 70 | AF105: * | AG105: 3 | AH105: = | AI105: =AE105*AG105 -> 210 | AK105: 71 | AL105: * | AM105: 3 | AN105: = | AO105: =AK105*AM105 -> 213
A106: 65 | B106: * | C106: 4 | D106: = | E106: =A106*C106 -> 260 | G106: 66 | H106: * | I106: 4 | J106: = | K106: =G106*I106 -> 264 | M106: 67 | N106: * | O106: 4 | P106: = | Q106: =M106*O106 -> 268 | S106: 68 | T106: * | U106: 4 | V106: = | W106: =S106*U106 -> 272 | Y106: 69 | Z106: * | AA106: 4 | AB106: = | AC106: =Y106*AA106 -> 276 | AE106: 70 | AF106: * | AG106: 4 | AH106: = | AI106: =AE106*AG106 -> 280 | AK106: 71 | AL106: * | AM106: 4 | AN106: = | AO106: =AK106*AM106 -> 284
A107: 65 | B107: * | C107: 5 | D107: = | E107: =A107*C107 -> 325 | G107: 66 | H107: * | I107: 5 | J107: = | K107: =G107*I107 -> 330 | M107: 67 | N107: * | O107: 5 | P107: = | Q107: =M107*O107 -> 335 | S107: 68 | T107: * | U107: 5 | V107: = | W107: =S107*U107 -> 340 | Y107: 69 | Z107: * | AA107: 5 | AB107: = | AC107: =Y107*AA107 -> 345 | AE107: 70 | AF107: * | AG107: 5 | AH107: = | AI107: =AE107*AG107 -> 350 | AK107: 71 | AL107: * | AM107: 5 | AN107: = | AO107: =AK107*AM107 -> 355
A108: 65 | B108: * | C108: 6 | D108: = | E108: =A108*C108 -> 390 | G108: 66 | H108: * | I108: 6 | J108: = | K108: =G108*I108 -> 396 | M108: 67 | N108: * | O108: 6 | P108: = | Q108: =M108*O108 -> 402 | S108: 68 | T108: * | U108: 6 | V108: = | W108: =S108*U108 -> 408 | Y108: 69 | Z108: * | AA108: 6 | AB108: = | AC108: =Y108*AA108 -> 414 | AE108: 70 | AF108: * | AG108: 6 | AH108: = | AI108: =AE108*AG108 -> 420 | AK108: 71 | AL108: * | AM108: 6 | AN108: = | AO108: =AK108*AM108 -> 426
A109: 65 | B109: * | C109: 7 | D109: = | E109: =A109*C109 -> 455 | G109: 66 | H109: * | I109: 7 | J109: = | K109: =G109*I109 -> 462 | M109: 67 | N109: * | O109: 7 | P109: = | Q109: =M109*O109 -> 469 | S109: 68 | T109: * | U109: 7 | V109: = | W109: =S109*U109 -> 476 | Y109: 69 | Z109: * | AA109: 7 | AB109: = | AC109: =Y109*AA109 -> 483 | AE109: 70 | AF109: * | AG109: 7 | AH109: = | AI109: =AE109*AG109 -> 490 | AK109: 71 | AL109: * | AM109: 7 | AN109: = | AO109: =AK109*AM109 -> 497
A110: 65 | B110: * | C110: 8 | D110: = | E110: =A110*C110 -> 520 | G110: 66 | H110: * | I110: 8 | J110: = | K110: =G110*I110 -> 528 | M110: 67 | N110: * | O110: 8 | P110: = | Q110: =M110*O110 -> 536 | S110: 68 | T110: * | U110: 8 | V110: = | W110: =S110*U110 -> 544 | Y110: 69 | Z110: * | AA110: 8 | AB110: = | AC110: =Y110*AA110 -> 552 | AE110: 70 | AF110: * | AG110: 8 | AH110: = | AI110: =AE110*AG110 -> 560 | AK110: 71 | AL110: * | AM110: 8 | AN110: = | AO110: =AK110*AM110 -> 568
A111: 65 | B111: * | C111: 9 | D111: = | E111: =A111*C111 -> 585 | G111: 66 | H111: * | I111: 9 | J111: = | K111: =G111*I111 -> 594 | M111: 67 | N111: * | O111: 9 | P111: = | Q111: =M111*O111 -> 603 | S111: 68 | T111: * | U111: 9 | V111: = | W111: =S111*U111 -> 612 | Y111: 69 | Z111: * | AA111: 9 | AB111: = | AC111: =Y111*AA111 -> 621 | AE111: 70 | AF111: * | AG111: 9 | AH111: = | AI111: =AE111*AG111 -> 630 | AK111: 71 | AL111: * | AM111: 9 | AN111: = | AO111: =AK111*AM111 -> 639
A113: 72 단 | G113: 73 단 | M113: 74 단 | S113: 75 단 | Y113: 76 단 | AE113: 77 단 | AK113: 78 단
A114: 72 | B114: * | C114: 1 | D114: = | E114: =A114*C114 -> 72 | G114: 73 | H114: * | I114: 1 | J114: = | K114: =G114*I114 -> 73 | M114: 74 | N114: * | O114: 1 | P114: = | Q114: =M114*O114 -> 74 | S114: 75 | T114: * | U114: 1 | V114: = | W114: =S114*U114 -> 75 | Y114: 76 | Z114: * | AA114: 1 | AB114: = | AC114: =Y114*AA114 -> 76 | AE114: 77 | AF114: * | AG114: 1 | AH114: = | AI114: =AE114*AG114 -> 77 | AK114: 78 | AL114: * | AM114: 1 | AN114: = | AO114: =AK114*AM114 -> 78
A115: 72 | B115: * | C115: 2 | D115: = | E115: =A115*C115 -> 144 | G115: 73 | H115: * | I115: 2 | J115: = | K115: =G115*I115 -> 146 | M115: 74 | N115: * | O115: 2 | P115: = | Q115: =M115*O115 -> 148 | S115: 75 | T115: * | U115: 2 | V115: = | W115: =S115*U115 -> 150 | Y115: 76 | Z115: * | AA115: 2 | AB115: = | AC115: =Y115*AA115 -> 152 | AE115: 77 | AF115: * | AG115: 2 | AH115: = | AI115: =AE115*AG115 -> 154 | AK115: 78 | AL115: * | AM115: 2 | AN115: = | AO115: =AK115*AM115 -> 156
A116: 72 | B116: * | C116: 3 | D116: = | E116: =A116*C116 -> 216 | G116: 73 | H116: * | I116: 3 | J116: = | K116: =G116*I116 -> 219 | M116: 74 | N116: * | O116: 3 | P116: = | Q116: =M116*O116 -> 222 | S116: 75 | T116: * | U116: 3 | V116: = | W116: =S116*U116 -> 225 | Y116: 76 | Z116: * | AA116: 3 | AB116: = | AC116: =Y116*AA116 -> 228 | AE116: 77 | AF116: * | AG116: 3 | AH116: = | AI116: =AE116*AG116 -> 231 | AK116: 78 | AL116: * | AM116: 3 | AN116: = | AO116: =AK116*AM116 -> 234
A117: 72 | B117: * | C117: 4 | D117: = | E117: =A117*C117 -> 288 | G117: 73 | H117: * | I117: 4 | J117: = | K117: =G117*I117 -> 292 | M117: 74 | N117: * | O117: 4 | P117: = | Q117: =M117*O117 -> 296 | S117: 75 | T117: * | U117: 4 | V117: = | W117: =S117*U117 -> 300 | Y117: 76 | Z117: * | AA117: 4 | AB117: = | AC117: =Y117*AA117 -> 304 | AE117: 77 | AF117: * | AG117: 4 | AH117: = | AI117: =AE117*AG117 -> 308 | AK117: 78 | AL117: * | AM117: 4 | AN117: = | AO117: =AK117*AM117 -> 312
A118: 72 | B118: * | C118: 5 | D118: = | E118: =A118*C118 -> 360 | G118: 73 | H118: * | I118: 5 | J118: = | K118: =G118*I118 -> 365 | M118: 74 | N118: * | O118: 5 | P118: = | Q118: =M118*O118 -> 370 | S118: 75 | T118: * | U118: 5 | V118: = | W118: =S118*U118 -> 375 | Y118: 76 | Z118: * | AA118: 5 | AB118: = | AC118: =Y118*AA118 -> 380 | AE118: 77 | AF118: * | AG118: 5 | AH118: = | AI118: =AE118*AG118 -> 385 | AK118: 78 | AL118: * | AM118: 5 | AN118: = | AO118: =AK118*AM118 -> 390
A119: 72 | B119: * | C119: 6 | D119: = | E119: =A119*C119 -> 432 | G119: 73 | H119: * | I119: 6 | J119: = | K119: =G119*I119 -> 438 | M119: 74 | N119: * | O119: 6 | P119: = | Q119: =M119*O119 -> 444 | S119: 75 | T119: * | U119: 6 | V119: = | W119: =S119*U119 -> 450 | Y119: 76 | Z119: * | AA119: 6 | AB119: = | AC119: =Y119*AA119 -> 456 | AE119: 77 | AF119: * | AG119: 6 | AH119: = | AI119: =AE119*AG119 -> 462 | AK119: 78 | AL119: * | AM119: 6 | AN119: = | AO119: =AK119*AM119 -> 468
A120: 72 | B120: * | C120: 7 | D120: = | E120: =A120*C120 -> 504 | G120: 73 | H120: * | I120: 7 | J120: = | K120: =G120*I120 -> 511 | M120: 74 | N120: * | O120: 7 | P120: = | Q120: =M120*O120 -> 518 | S120: 75 | T120: * | U120: 7 | V120: = | W120: =S120*U120 -> 525 | Y120: 76 | Z120: * | AA120: 7 | AB120: = | AC120: =Y120*AA120 -> 532 | AE120: 77 | AF120: * | AG120: 7 | AH120: = | AI120: =AE120*AG120 -> 539 | AK120: 78 | AL120: * | AM120: 7 | AN120: = | AO120: =AK120*AM120 -> 546
A121: 72 | B121: * | C121: 8 | D121: = | E121: =A121*C121 -> 576 | G121: 73 | H121: * | I121: 8 | J121: = | K121: =G121*I121 -> 584 | M121: 74 | N121: * | O121: 8 | P121: = | Q121: =M121*O121 -> 592 | S121: 75 | T121: * | U121: 8 | V121: = | W121: =S121*U121 -> 600 | Y121: 76 | Z121: * | AA121: 8 | AB121: = | AC121: =Y121*AA121 -> 608 | AE121: 77 | AF121: * | AG121: 8 | AH121: = | AI121: =AE121*AG121 -> 616 | AK121: 78 | AL121: * | AM121: 8 | AN121: = | AO121: =AK121*AM121 -> 624
A122: 72 | B122: * | C122: 9 | D122: = | E122: =A122*C122 -> 648 | G122: 73 | H122: * | I122: 9 | J122: = | K122: =G122*I122 -> 657 | M122: 74 | N122: * | O122: 9 | P122: = | Q122: =M122*O122 -> 666 | S122: 75 | T122: * | U122: 9 | V122: = | W122: =S122*U122 -> 675 | Y122: 76 | Z122: * | AA122: 9 | AB122: = | AC122: =Y122*AA122 -> 684 | AE122: 77 | AF122: * | AG122: 9 | AH122: = | AI122: =AE122*AG122 -> 693 | AK122: 78 | AL122: * | AM122: 9 | AN122: = | AO122: =AK122*AM122 -> 702
A124: 79 단 | G124: 80 단 | M124: 81 단 | S124: 82 단 | Y124: 83 단 | AE124: 84 단 | AK124: 85 단
A125: 79 | B125: * | C125: 1 | D125: = | E125: =A125*C125 -> 79 | G125: 80 | H125: * | I125: 1 | J125: = | K125: =G125*I125 -> 80 | M125: 81 | N125: * | O125: 1 | P125: = | Q125: =M125*O125 -> 81 | S125: 82 | T125: * | U125: 1 | V125: = | W125: =S125*U125 -> 82 | Y125: 83 | Z125: * | AA125: 1 | AB125: = | AC125: =Y125*AA125 -> 83 | AE125: 84 | AF125: * | AG125: 1 | AH125: = | AI125: =AE125*AG125 -> 84 | AK125: 85 | AL125: * | AM125: 1 | AN125: = | AO125: =AK125*AM125 -> 85
A126: 79 | B126: * | C126: 2 | D126: = | E126: =A126*C126 -> 158 | G126: 80 | H126: * | I126: 2 | J126: = | K126: =G126*I126 -> 160 | M126: 81 | N126: * | O126: 2 | P126: = | Q126: =M126*O126 -> 162 | S126: 82 | T126: * | U126: 2 | V126: = | W126: =S126*U126 -> 164 | Y126: 83 | Z126: * | AA126: 2 | AB126: = | AC126: =Y126*AA126 -> 166 | AE126: 84 | AF126: * | AG126: 2 | AH126: = | AI126: =AE126*AG126 -> 168 | AK126: 85 | AL126: * | AM126: 2 | AN126: = | AO126: =AK126*AM126 -> 170
A127: 79 | B127: * | C127: 3 | D127: = | E127: =A127*C127 -> 237 | G127: 80 | H127: * | I127: 3 | J127: = | K127: =G127*I127 -> 240 | M127: 81 | N127: * | O127: 3 | P127: = | Q127: =M127*O127 -> 243 | S127: 82 | T127: * | U127: 3 | V127: = | W127: =S127*U127 -> 246 | Y127: 83 | Z127: * | AA127: 3 | AB127: = | AC127: =Y127*AA127 -> 249 | AE127: 84 | AF127: * | AG127: 3 | AH127: = | AI127: =AE127*AG127 -> 252 | AK127: 85 | AL127: * | AM127: 3 | AN127: = | AO127: =AK127*AM127 -> 255
A128: 79 | B128: * | C128: 4 | D128: = | E128: =A128*C128 -> 316 | G128: 80 | H128: * | I128: 4 | J128: = | K128: =G128*I128 -> 320 | M128: 81 | N128: * | O128: 4 | P128: = | Q128: =M128*O128 -> 324 | S128: 82 | T128: * | U128: 4 | V128: = | W128: =S128*U128 -> 328 | Y128: 83 | Z128: * | AA128: 4 | AB128: = | AC128: =Y128*AA128 -> 332 | AE128: 84 | AF128: * | AG128: 4 | AH128: = | AI128: =AE128*AG128 -> 336 | AK128: 85 | AL128: * | AM128: 4 | AN128: = | AO128: =AK128*AM128 -> 340
A129: 79 | B129: * | C129: 5 | D129: = | E129: =A129*C129 -> 395 | G129: 80 | H129: * | I129: 5 | J129: = | K129: =G129*I129 -> 400 | M129: 81 | N129: * | O129: 5 | P129: = | Q129: =M129*O129 -> 405 | S129: 82 | T129: * | U129: 5 | V129: = | W129: =S129*U129 -> 410 | Y129: 83 | Z129: * | AA129: 5 | AB129: = | AC129: =Y129*AA129 -> 415 | AE129: 84 | AF129: * | AG129: 5 | AH129: = | AI129: =AE129*AG129 -> 420 | AK129: 85 | AL129: * | AM129: 5 | AN129: = | AO129: =AK129*AM129 -> 425
A130: 79 | B130: * | C130: 6 | D130: = | E130: =A130*C130 -> 474 | G130: 80 | H130: * | I130: 6 | J130: = | K130: =G130*I130 -> 480 | M130: 81 | N130: * | O130: 6 | P130: = | Q130: =M130*O130 -> 486 | S130: 82 | T130: * | U130: 6 | V130: = | W130: =S130*U130 -> 492 | Y130: 83 | Z130: * | AA130: 6 | AB130: = | AC130: =Y130*AA130 -> 498 | AE130: 84 | AF130: * | AG130: 6 | AH130: = | AI130: =AE130*AG130 -> 504 | AK130: 85 | AL130: * | AM130: 6 | AN130: = | AO130: =AK130*AM130 -> 510
A131: 79 | B131: * | C131: 7 | D131: = | E131: =A131*C131 -> 553 | G131: 80 | H131: * | I131: 7 | J131: = | K131: =G131*I131 -> 560 | M131: 81 | N131: * | O131: 7 | P131: = | Q131: =M131*O131 -> 567 | S131: 82 | T131: * | U131: 7 | V131: = | W131: =S131*U131 -> 574 | Y131: 83 | Z131: * | AA131: 7 | AB131: = | AC131: =Y131*AA131 -> 581 | AE131: 84 | AF131: * | AG131: 7 | AH131: = | AI131: =AE131*AG131 -> 588 | AK131: 85 | AL131: * | AM131: 7 | AN131: = | AO131: =AK131*AM131 -> 595
A132: 79 | B132: * | C132: 8 | D132: = | E132: =A132*C132 -> 632 | G132: 80 | H132: * | I132: 8 | J132: = | K132: =G132*I132 -> 640 | M132: 81 | N132: * | O132: 8 | P132: = | Q132: =M132*O132 -> 648 | S132: 82 | T132: * | U132: 8 | V132: = | W132: =S132*U132 -> 656 | Y132: 83 | Z132: * | AA132: 8 | AB132: = | AC132: =Y132*AA132 -> 664 | AE132: 84 | AF132: * | AG132: 8 | AH132: = | AI132: =AE132*AG132 -> 672 | AK132: 85 | AL132: * | AM132: 8 | AN132: = | AO132: =AK132*AM132 -> 680
A133: 79 | B133: * | C133: 9 | D133: = | E133: =A133*C133 -> 711 | G133: 80 | H133: * | I133: 9 | J133: = | K133: =G133*I133 -> 720 | M133: 81 | N133: * | O133: 9 | P133: = | Q133: =M133*O133 -> 729 | S133: 82 | T133: * | U133: 9 | V133: = | W133: =S133*U133 -> 738 | Y133: 83 | Z133: * | AA133: 9 | AB133: = | AC133: =Y133*AA133 -> 747 | AE133: 84 | AF133: * | AG133: 9 | AH133: = | AI133: =AE133*AG133 -> 756 | AK133: 85 | AL133: * | AM133: 9 | AN133: = | AO133: =AK133*AM133 -> 765
A135: 86 단 | G135: 87 단 | M135: 88 단 | S135: 89 단 | Y135: 90 단 | AE135: 91 단 | AK135: 92 단
A136: 86 | B136: * | C136: 1 | D136: = | E136: =A136*C136 -> 86 | G136: 87 | H136: * | I136: 1 | J136: = | K136: =G136*I136 -> 87 | M136: 88 | N136: * | O136: 1 | P136: = | Q136: =M136*O136 -> 88 | S136: 89 | T136: * | U136: 1 | V136: = | W136: =S136*U136 -> 89 | Y136: 90 | Z136: * | AA136: 1 | AB136: = | AC136: =Y136*AA136 -> 90 | AE136: 91 | AF136: * | AG136: 1 | AH136: = | AI136: =AE136*AG136 -> 91 | AK136: 92 | AL136: * | AM136: 1 | AN136: = | AO136: =AK136*AM136 -> 92
A137: 86 | B137: * | C137: 2 | D137: = | E137: =A137*C137 -> 172 | G137: 87 | H137: * | I137: 2 | J137: = | K137: =G137*I137 -> 174 | M137: 88 | N137: * | O137: 2 | P137: = | Q137: =M137*O137 -> 176 | S137: 89 | T137: * | U137: 2 | V137: = | W137: =S137*U137 -> 178 | Y137: 90 | Z137: * | AA137: 2 | AB137: = | AC137: =Y137*AA137 -> 180 | AE137: 91 | AF137: * | AG137: 2 | AH137: = | AI137: =AE137*AG137 -> 182 | AK137: 92 | AL137: * | AM137: 2 | AN137: = | AO137: =AK137*AM137 -> 184
A138: 86 | B138: * | C138: 3 | D138: = | E138: =A138*C138 -> 258 | G138: 87 | H138: * | I138: 3 | J138: = | K138: =G138*I138 -> 261 | M138: 88 | N138: * | O138: 3 | P138: = | Q138: =M138*O138 -> 264 | S138: 89 | T138: * | U138: 3 | V138: = | W138: =S138*U138 -> 267 | Y138: 90 | Z138: * | AA138: 3 | AB138: = | AC138: =Y138*AA138 -> 270 | AE138: 91 | AF138: * | AG138: 3 | AH138: = | AI138: =AE138*AG138 -> 273 | AK138: 92 | AL138: * | AM138: 3 | AN138: = | AO138: =AK138*AM138 -> 276
A139: 86 | B139: * | C139: 4 | D139: = | E139: =A139*C139 -> 344 | G139: 87 | H139: * | I139: 4 | J139: = | K139: =G139*I139 -> 348 | M139: 88 | N139: * | O139: 4 | P139: = | Q139: =M139*O139 -> 352 | S139: 89 | T139: * | U139: 4 | V139: = | W139: =S139*U139 -> 356 | Y139: 90 | Z139: * | AA139: 4 | AB139: = | AC139: =Y139*AA139 -> 360 | AE139: 91 | AF139: * | AG139: 4 | AH139: = | AI139: =AE139*AG139 -> 364 | AK139: 92 | AL139: * | AM139: 4 | AN139: = | AO139: =AK139*AM139 -> 368
A140: 86 | B140: * | C140: 5 | D140: = | E140: =A140*C140 -> 430 | G140: 87 | H140: * | I140: 5 | J140: = | K140: =G140*I140 -> 435 | M140: 88 | N140: * | O140: 5 | P140: = | Q140: =M140*O140 -> 440 | S140: 89 | T140: * | U140: 5 | V140: = | W140: =S140*U140 -> 445 | Y140: 90 | Z140: * | AA140: 5 | AB140: = | AC140: =Y140*AA140 -> 450 | AE140: 91 | AF140: * | AG140: 5 | AH140: = | AI140: =AE140*AG140 -> 455 | AK140: 92 | AL140: * | AM140: 5 | AN140: = | AO140: =AK140*AM140 -> 460
A141: 86 | B141: * | C141: 6 | D141: = | E141: =A141*C141 -> 516 | G141: 87 | H141: * | I141: 6 | J141: = | K141: =G141*I141 -> 522 | M141: 88 | N141: * | O141: 6 | P141: = | Q141: =M141*O141 -> 528 | S141: 89 | T141: * | U141: 6 | V141: = | W141: =S141*U141 -> 534 | Y141: 90 | Z141: * | AA141: 6 | AB141: = | AC141: =Y141*AA141 -> 540 | AE141: 91 | AF141: * | AG141: 6 | AH141: = | AI141: =AE141*AG141 -> 546 | AK141: 92 | AL141: * | AM141: 6 | AN141: = | AO141: =AK141*AM141 -> 552
A142: 86 | B142: * | C142: 7 | D142: = | E142: =A142*C142 -> 602 | G142: 87 | H142: * | I142: 7 | J142: = | K142: =G142*I142 -> 609 | M142: 88 | N142: * | O142: 7 | P142: = | Q142: =M142*O142 -> 616 | S142: 89 | T142: * | U142: 7 | V142: = | W142: =S142*U142 -> 623 | Y142: 90 | Z142: * | AA142: 7 | AB142: = | AC142: =Y142*AA142 -> 630 | AE142: 91 | AF142: * | AG142: 7 | AH142: = | AI142: =AE142*AG142 -> 637 | AK142: 92 | AL142: * | AM142: 7 | AN142: = | AO142: =AK142*AM142 -> 644
A143: 86 | B143: * | C143: 8 | D143: = | E143: =A143*C143 -> 688 | G143: 87 | H143: * | I143: 8 | J143: = | K143: =G143*I143 -> 696 | M143: 88 | N143: * | O143: 8 | P143: = | Q143: =M143*O143 -> 704 | S143: 89 | T143: * | U143: 8 | V143: = | W143: =S143*U143 -> 712 | Y143: 90 | Z143: * | AA143: 8 | AB143: = | AC143: =Y143*AA143 -> 720 | AE143: 91 | AF143: * | AG143: 8 | AH143: = | AI143: =AE143*AG143 -> 728 | AK143: 92 | AL143: * | AM143: 8 | AN143: = | AO143: =AK143*AM143 -> 736
A144: 86 | B144: * | C144: 9 | D144: = | E144: =A144*C144 -> 774 | G144: 87 | H144: * | I144: 9 | J144: = | K144: =G144*I144 -> 783 | M144: 88 | N144: * | O144: 9 | P144: = | Q144: =M144*O144 -> 792 | S144: 89 | T144: * | U144: 9 | V144: = | W144: =S144*U144 -> 801 | Y144: 90 | Z144: * | AA144: 9 | AB144: = | AC144: =Y144*AA144 -> 810 | AE144: 91 | AF144: * | AG144: 9 | AH144: = | AI144: =AE144*AG144 -> 819 | AK144: 92 | AL144: * | AM144: 9 | AN144: = | AO144: =AK144*AM144 -> 828
A146: 93 단 | G146: 94 단 | M146: 95 단 | S146: 96 단 | Y146: 97 단 | AE146: 98 단 | AK146: 99 단
A147: 93 | B147: * | C147: 1 | D147: = | E147: =A147*C147 -> 93 | G147: 94 | H147: * | I147: 1 | J147: = | K147: =G147*I147 -> 94 | M147: 95 | N147: * | O147: 1 | P147: = | Q147: =M147*O147 -> 95 | S147: 96 | T147: * | U147: 1 | V147: = | W147: =S147*U147 -> 96 | Y147: 97 | Z147: * | AA147: 1 | AB147: = | AC147: =Y147*AA147 -> 97 | AE147: 98 | AF147: * | AG147: 1 | AH147: = | AI147: =AE147*AG147 -> 98 | AK147: 99 | AL147: * | AM147: 1 | AN147: = | AO147: =AK147*AM147 -> 99
A148: 93 | B148: * | C148: 2 | D148: = | E148: =A148*C148 -> 186 | G148: 94 | H148: * | I148: 2 | J148: = | K148: =G148*I148 -> 188 | M148: 95 | N148: * | O148: 2 | P148: = | Q148: =M148*O148 -> 190 | S148: 96 | T148: * | U148: 2 | V148: = | W148: =S148*U148 -> 192 | Y148: 97 | Z148: * | AA148: 2 | AB148: = | AC148: =Y148*AA148 -> 194 | AE148: 98 | AF148: * | AG148: 2 | AH148: = | AI148: =AE148*AG148 -> 196 | AK148: 99 | AL148: * | AM148: 2 | AN148: = | AO148: =AK148*AM148 -> 198
A149: 93 | B149: * | C149: 3 | D149: = | E149: =A149*C149 -> 279 | G149: 94 | H149: * | I149: 3 | J149: = | K149: =G149*I149 -> 282 | M149: 95 | N149: * | O149: 3 | P149: = | Q149: =M149*O149 -> 285 | S149: 96 | T149: * | U149: 3 | V149: = | W149: =S149*U149 -> 288 | Y149: 97 | Z149: * | AA149: 3 | AB149: = | AC149: =Y149*AA149 -> 291 | AE149: 98 | AF149: * | AG149: 3 | AH149: = | AI149: =AE149*AG149 -> 294 | AK149: 99 | AL149: * | AM149: 3 | AN149: = | AO149: =AK149*AM149 -> 297
A150: 93 | B150: * | C150: 4 | D150: = | E150: =A150*C150 -> 372 | G150: 94 | H150: * | I150: 4 | J150: = | K150: =G150*I150 -> 376 | M150: 95 | N150: * | O150: 4 | P150: = | Q150: =M150*O150 -> 380 | S150: 96 | T150: * | U150: 4 | V150: = | W150: =S150*U150 -> 384 | Y150: 97 | Z150: * | AA150: 4 | AB150: = | AC150: =Y150*AA150 -> 388 | AE150: 98 | AF150: * | AG150: 4 | AH150: = | AI150: =AE150*AG150 -> 392 | AK150: 99 | AL150: * | AM150: 4 | AN150: = | AO150: =AK150*AM150 -> 396
A151: 93 | B151: * | C151: 5 | D151: = | E151: =A151*C151 -> 465 | G151: 94 | H151: * | I151: 5 | J151: = | K151: =G151*I151 -> 470 | M151: 95 | N151: * | O151: 5 | P151: = | Q151: =M151*O151 -> 475 | S151: 96 | T151: * | U151: 5 | V151: = | W151: =S151*U151 -> 480 | Y151: 97 | Z151: * | AA151: 5 | AB151: = | AC151: =Y151*AA151 -> 485 | AE151: 98 | AF151: * | AG151: 5 | AH151: = | AI151: =AE151*AG151 -> 490 | AK151: 99 | AL151: * | AM151: 5 | AN151: = | AO151: =AK151*AM151 -> 495
A152: 93 | B152: * | C152: 6 | D152: = | E152: =A152*C152 -> 558 | G152: 94 | H152: * | I152: 6 | J152: = | K152: =G152*I152 -> 564 | M152: 95 | N152: * | O152: 6 | P152: = | Q152: =M152*O152 -> 570 | S152: 96 | T152: * | U152: 6 | V152: = | W152: =S152*U152 -> 576 | Y152: 97 | Z152: * | AA152: 6 | AB152: = | AC152: =Y152*AA152 -> 582 | AE152: 98 | AF152: * | AG152: 6 | AH152: = | AI152: =AE152*AG152 -> 588 | AK152: 99 | AL152: * | AM152: 6 | AN152: = | AO152: =AK152*AM152 -> 594
A153: 93 | B153: * | C153: 7 | D153: = | E153: =A153*C153 -> 651 | G153: 94 | H153: * | I153: 7 | J153: = | K153: =G153*I153 -> 658 | M153: 95 | N153: * | O153: 7 | P153: = | Q153: =M153*O153 -> 665 | S153: 96 | T153: * | U153: 7 | V153: = | W153: =S153*U153 -> 672 | Y153: 97 | Z153: * | AA153: 7 | AB153: = | AC153: =Y153*AA153 -> 679 | AE153: 98 | AF153: * | AG153: 7 | AH153: = | AI153: =AE153*AG153 -> 686 | AK153: 99 | AL153: * | AM153: 7 | AN153: = | AO153: =AK153*AM153 -> 693
A154: 93 | B154: * | C154: 8 | D154: = | E154: =A154*C154 -> 744 | G154: 94 | H154: * | I154: 8 | J154: = | K154: =G154*I154 -> 752 | M154: 95 | N154: * | O154: 8 | P154: = | Q154: =M154*O154 -> 760 | S154: 96 | T154: * | U154: 8 | V154: = | W154: =S154*U154 -> 768 | Y154: 97 | Z154: * | AA154: 8 | AB154: = | AC154: =Y154*AA154 -> 776 | AE154: 98 | AF154: * | AG154: 8 | AH154: = | AI154: =AE154*AG154 -> 784 | AK154: 99 | AL154: * | AM154: 8 | AN154: = | AO154: =AK154*AM154 -> 792
A155: 93 | B155: * | C155: 9 | D155: = | E155: =A155*C155 -> 837 | G155: 94 | H155: * | I155: 9 | J155: = | K155: =G155*I155 -> 846 | M155: 95 | N155: * | O155: 9 | P155: = | Q155: =M155*O155 -> 855 | S155: 96 | T155: * | U155: 9 | V155: = | W155: =S155*U155 -> 864 | Y155: 97 | Z155: * | AA155: 9 | AB155: = | AC155: =Y155*AA155 -> 873 | AE155: 98 | AF155: * | AG155: 9 | AH155: = | AI155: =AE155*AG155 -> 882 | AK155: 99 | AL155: * | AM155: 9 | AN155: = | AO155: =AK155*AM155 -> 891
A157: 100 단 | G157: 101 단 | M157: 102 단 | S157: 103 단 | Y157: 104 단 | AE157: 105 단 | AK157: 106 단
A158: 100 | B158: * | C158: 1 | D158: = | E158: =A158*C158 -> 100 | G158: 101 | H158: * | I158: 1 | J158: = | K158: =G158*I158 -> 101 | M158: 102 | N158: * | O158: 1 | P158: = | Q158: =M158*O158 -> 102 | S158: 103 | T158: * | U158: 1 | V158: = | W158: =S158*U158 -> 103 | Y158: 104 | Z158: * | AA158: 1 | AB158: = | AC158: =Y158*AA158 -> 104 | AE158: 105 | AF158: * | AG158: 1 | AH158: = | AI158: =AE158*AG158 -> 105 | AK158: 106 | AL158: * | AM158: 1 | AN158: = | AO158: =AK158*AM158 -> 106
A159: 100 | B159: * | C159: 2 | D159: = | E159: =A159*C159 -> 200 | G159: 101 | H159: * | I159: 2 | J159: = | K159: =G159*I159 -> 202 | M159: 102 | N159: * | O159: 2 | P159: = | Q159: =M159*O159 -> 204 | S159: 103 | T159: * | U159: 2 | V159: = | W159: =S159*U159 -> 206 | Y159: 104 | Z159: * | AA159: 2 | AB159: = | AC159: =Y159*AA159 -> 208 | AE159: 105 | AF159: * | AG159: 2 | AH159: = | AI159: =AE159*AG159 -> 210 | AK159: 106 | AL159: * | AM159: 2 | AN159: = | AO159: =AK159*AM159 -> 212
A160: 100 | B160: * | C160: 3 | D160: = | E160: =A160*C160 -> 300 | G160: 101 | H160: * | I160: 3 | J160: = | K160: =G160*I160 -> 303 | M160: 102 | N160: * | O160: 3 | P160: = | Q160: =M160*O160 -> 306 | S160: 103 | T160: * | U160: 3 | V160: = | W160: =S160*U160 -> 309 | Y160: 104 | Z160: * | AA160: 3 | AB160: = | AC160: =Y160*AA160 -> 312 | AE160: 105 | AF160: * | AG160: 3 | AH160: = | AI160: =AE160*AG160 -> 315 | AK160: 106 | AL160: * | AM160: 3 | AN160: = | AO160: =AK160*AM160 -> 318
A161: 100 | B161: * | C161: 4 | D161: = | E161: =A161*C161 -> 400 | G161: 101 | H161: * | I161: 4 | J161: = | K161: =G161*I161 -> 404 | M161: 102 | N161: * | O161: 4 | P161: = | Q161: =M161*O161 -> 408 | S161: 103 | T161: * | U161: 4 | V161: = | W161: =S161*U161 -> 412 | Y161: 104 | Z161: * | AA161: 4 | AB161: = | AC161: =Y161*AA161 -> 416 | AE161: 105 | AF161: * | AG161: 4 | AH161: = | AI161: =AE161*AG161 -> 420 | AK161: 106 | AL161: * | AM161: 4 | AN161: = | AO161: =AK161*AM161 -> 424
A162: 100 | B162: * | C162: 5 | D162: = | E162: =A162*C162 -> 500 | G162: 101 | H162: * | I162: 5 | J162: = | K162: =G162*I162 -> 505 | M162: 102 | N162: * | O162: 5 | P162: = | Q162: =M162*O162 -> 510 | S162: 103 | T162: * | U162: 5 | V162: = | W162: =S162*U162 -> 515 | Y162: 104 | Z162: * | AA162: 5 | AB162: = | AC162: =Y162*AA162 -> 520 | AE162: 105 | AF162: * | AG162: 5 | AH162: = | AI162: =AE162*AG162 -> 525 | AK162: 106 | AL162: * | AM162: 5 | AN162: = | AO162: =AK162*AM162 -> 530
A163: 100 | B163: * | C163: 6 | D163: = | E163: =A163*C163 -> 600 | G163: 101 | H163: * | I163: 6 | J163: = | K163: =G163*I163 -> 606 | M163: 102 | N163: * | O163: 6 | P163: = | Q163: =M163*O163 -> 612 | S163: 103 | T163: * | U163: 6 | V163: = | W163: =S163*U163 -> 618 | Y163: 104 | Z163: * | AA163: 6 | AB163: = | AC163: =Y163*AA163 -> 624 | AE163: 105 | AF163: * | AG163: 6 | AH163: = | AI163: =AE163*AG163 -> 630 | AK163: 106 | AL163: * | AM163: 6 | AN163: = | AO163: =AK163*AM163 -> 636
A164: 100 | B164: * | C164: 7 | D164: = | E164: =A164*C164 -> 700 | G164: 101 | H164: * | I164: 7 | J164: = | K164: =G164*I164 -> 707 | M164: 102 | N164: * | O164: 7 | P164: = | Q164: =M164*O164 -> 714 | S164: 103 | T164: * | U164: 7 | V164: = | W164: =S164*U164 -> 721 | Y164: 104 | Z164: * | AA164: 7 | AB164: = | AC164: =Y164*AA164 -> 728 | AE164: 105 | AF164: * | AG164: 7 | AH164: = | AI164: =AE164*AG164 -> 735 | AK164: 106 | AL164: * | AM164: 7 | AN164: = | AO164: =AK164*AM164 -> 742
A165: 100 | B165: * | C165: 8 | D165: = | E165: =A165*C165 -> 800 | G165: 101 | H165: * | I165: 8 | J165: = | K165: =G165*I165 -> 808 | M165: 102 | N165: * | O165: 8 | P165: = | Q165: =M165*O165 -> 816 | S165: 103 | T165: * | U165: 8 | V165: = | W165: =S165*U165 -> 824 | Y165: 104 | Z165: * | AA165: 8 | AB165: = | AC165: =Y165*AA165 -> 832 | AE165: 105 | AF165: * | AG165: 8 | AH165: = | AI165: =AE165*AG165 -> 840 | AK165: 106 | AL165: * | AM165: 8 | AN165: = | AO165: =AK165*AM165 -> 848
A166: 100 | B166: * | C166: 9 | D166: = | E166: =A166*C166 -> 900 | G166: 101 | H166: * | I166: 9 | J166: = | K166: =G166*I166 -> 909 | M166: 102 | N166: * | O166: 9 | P166: = | Q166: =M166*O166 -> 918 | S166: 103 | T166: * | U166: 9 | V166: = | W166: =S166*U166 -> 927 | Y166: 104 | Z166: * | AA166: 9 | AB166: = | AC166: =Y166*AA166 -> 936 | AE166: 105 | AF166: * | AG166: 9 | AH166: = | AI166: =AE166*AG166 -> 945 | AK166: 106 | AL166: * | AM166: 9 | AN166: = | AO166: =AK166*AM166 -> 954
A168: 107 단 | G168: 108 단 | M168: 109 단 | S168: 110 단 | Y168: 111 단 | AE168: 112 단 | AK168: 113 단
A169: 107 | B169: * | C169: 1 | D169: = | E169: =A169*C169 -> 107 | G169: 108 | H169: * | I169: 1 | J169: = | K169: =G169*I169 -> 108 | M169: 109 | N169: * | O169: 1 | P169: = | Q169: =M169*O169 -> 109 | S169: 110 | T169: * | U169: 1 | V169: = | W169: =S169*U169 -> 110 | Y169: 111 | Z169: * | AA169: 1 | AB169: = | AC169: =Y169*AA169 -> 111 | AE169: 112 | AF169: * | AG169: 1 | AH169: = | AI169: =AE169*AG169 -> 112 | AK169: 113 | AL169: * | AM169: 1 | AN169: = | AO169: =AK169*AM169 -> 113
A170: 107 | B170: * | C170: 2 | D170: = | E170: =A170*C170 -> 214 | G170: 108 | H170: * | I170: 2 | J170: = | K170: =G170*I170 -> 216 | M170: 109 | N170: * | O170: 2 | P170: = | Q170: =M170*O170 -> 218 | S170: 110 | T170: * | U170: 2 | V170: = | W170: =S170*U170 -> 220 | Y170: 111 | Z170: * | AA170: 2 | AB170: = | AC170: =Y170*AA170 -> 222 | AE170: 112 | AF170: * | AG170: 2 | AH170: = | AI170: =AE170*AG170 -> 224 | AK170: 113 | AL170: * | AM170: 2 | AN170: = | AO170: =AK170*AM170 -> 226
A171: 107 | B171: * | C171: 3 | D171: = | E171: =A171*C171 -> 321 | G171: 108 | H171: * | I171: 3 | J171: = | K171: =G171*I171 -> 324 | M171: 109 | N171: * | O171: 3 | P171: = | Q171: =M171*O171 -> 327 | S171: 110 | T171: * | U171: 3 | V171: = | W171: =S171*U171 -> 330 | Y171: 111 | Z171: * | AA171: 3 | AB171: = | AC171: =Y171*AA171 -> 333 | AE171: 112 | AF171: * | AG171: 3 | AH171: = | AI171: =AE171*AG171 -> 336 | AK171: 113 | AL171: * | AM171: 3 | AN171: = | AO171: =AK171*AM171 -> 339
A172: 107 | B172: * | C172: 4 | D172: = | E172: =A172*C172 -> 428 | G172: 108 | H172: * | I172: 4 | J172: = | K172: =G172*I172 -> 432 | M172: 109 | N172: * | O172: 4 | P172: = | Q172: =M172*O172 -> 436 | S172: 110 | T172: * | U172: 4 | V172: = | W172: =S172*U172 -> 440 | Y172: 111 | Z172: * | AA172: 4 | AB172: = | AC172: =Y172*AA172 -> 444 | AE172: 112 | AF172: * | AG172: 4 | AH172: = | AI172: =AE172*AG172 -> 448 | AK172: 113 | AL172: * | AM172: 4 | AN172: = | AO172: =AK172*AM172 -> 452
A173: 107 | B173: * | C173: 5 | D173: = | E173: =A173*C173 -> 535 | G173: 108 | H173: * | I173: 5 | J173: = | K173: =G173*I173 -> 540 | M173: 109 | N173: * | O173: 5 | P173: = | Q173: =M173*O173 -> 545 | S173: 110 | T173: * | U173: 5 | V173: = | W173: =S173*U173 -> 550 | Y173: 111 | Z173: * | AA173: 5 | AB173: = | AC173: =Y173*AA173 -> 555 | AE173: 112 | AF173: * | AG173: 5 | AH173: = | AI173: =AE173*AG173 -> 560 | AK173: 113 | AL173: * | AM173: 5 | AN173: = | AO173: =AK173*AM173 -> 565
A174: 107 | B174: * | C174: 6 | D174: = | E174: =A174*C174 -> 642 | G174: 108 | H174: * | I174: 6 | J174: = | K174: =G174*I174 -> 648 | M174: 109 | N174: * | O174: 6 | P174: = | Q174: =M174*O174 -> 654 | S174: 110 | T174: * | U174: 6 | V174: = | W174: =S174*U174 -> 660 | Y174: 111 | Z174: * | AA174: 6 | AB174: = | AC174: =Y174*AA174 -> 666 | AE174: 112 | AF174: * | AG174: 6 | AH174: = | AI174: =AE174*AG174 -> 672 | AK174: 113 | AL174: * | AM174: 6 | AN174: = | AO174: =AK174*AM174 -> 678
A175: 107 | B175: * | C175: 7 | D175: = | E175: =A175*C175 -> 749 | G175: 108 | H175: * | I175: 7 | J175: = | K175: =G175*I175 -> 756 | M175: 109 | N175: * | O175: 7 | P175: = | Q175: =M175*O175 -> 763 | S175: 110 | T175: * | U175: 7 | V175: = | W175: =S175*U175 -> 770 | Y175: 111 | Z175: * | AA175: 7 | AB175: = | AC175: =Y175*AA175 -> 777 | AE175: 112 | AF175: * | AG175: 7 | AH175: = | AI175: =AE175*AG175 -> 784 | AK175: 113 | AL175: * | AM175: 7 | AN175: = | AO175: =AK175*AM175 -> 791
A176: 107 | B176: * | C176: 8 | D176: = | E176: =A176*C176 -> 856 | G176: 108 | H176: * | I176: 8 | J176: = | K176: =G176*I176 -> 864 | M176: 109 | N176: * | O176: 8 | P176: = | Q176: =M176*O176 -> 872 | S176: 110 | T176: * | U176: 8 | V176: = | W176: =S176*U176 -> 880 | Y176: 111 | Z176: * | AA176: 8 | AB176: = | AC176: =Y176*AA176 -> 888 | AE176: 112 | AF176: * | AG176: 8 | AH176: = | AI176: =AE176*AG176 -> 896 | AK176: 113 | AL176: * | AM176: 8 | AN176: = | AO176: =AK176*AM176 -> 904
A177: 107 | B177: * | C177: 9 | D177: = | E177: =A177*C177 -> 963 | G177: 108 | H177: * | I177: 9 | J177: = | K177: =G177*I177 -> 972 | M177: 109 | N177: * | O177: 9 | P177: = | Q177: =M177*O177 -> 981 | S177: 110 | T177: * | U177: 9 | V177: = | W177: =S177*U177 -> 990 | Y177: 111 | Z177: * | AA177: 9 | AB177: = | AC177: =Y177*AA177 -> 999 | AE177: 112 | AF177: * | AG177: 9 | AH177: = | AI177: =AE177*AG177 -> 1008 | AK177: 113 | AL177: * | AM177: 9 | AN177: = | AO177: =AK177*AM177 -> 1017
A179: 114 단 | G179: 115 단 | M179: 116 단 | S179: 117 단 | Y179: 118 단 | AE179: 119 단 | AK179: 120 단
A180: 114 | B180: * | C180: 1 | D180: = | E180: =A180*C180 -> 114 | G180: 115 | H180: * | I180: 1 | J180: = | K180: =G180*I180 -> 115 | M180: 116 | N180: * | O180: 1 | P180: = | Q180: =M180*O180 -> 116 | S180: 117 | T180: * | U180: 1 | V180: = | W180: =S180*U180 -> 117 | Y180: 118 | Z180: * | AA180: 1 | AB180: = | AC180: =Y180*AA180 -> 118 | AE180: 119 | AF180: * | AG180: 1 | AH180: = | AI180: =AE180*AG180 -> 119 | AK180: 120 | AL180: * | AM180: 1 | AN180: = | AO180: =AK180*AM180 -> 120
A181: 114 | B181: * | C181: 2 | D181: = | E181: =A181*C181 -> 228 | G181: 115 | H181: * | I181: 2 | J181: = | K181: =G181*I181 -> 230 | M181: 116 | N181: * | O181: 2 | P181: = | Q181: =M181*O181 -> 232 | S181: 117 | T181: * | U181: 2 | V181: = | W181: =S181*U181 -> 234 | Y181: 118 | Z181: * | AA181: 2 | AB181: = | AC181: =Y181*AA181 -> 236 | AE181: 119 | AF181: * | AG181: 2 | AH181: = | AI181: =AE181*AG181 -> 238 | AK181: 120 | AL181: * | AM181: 2 | AN181: = | AO181: =AK181*AM181 -> 240
A182: 114 | B182: * | C182: 3 | D182: = | E182: =A182*C182 -> 342 | G182: 115 | H182: * | I182: 3 | J182: = | K182: =G182*I182 -> 345 | M182: 116 | N182: * | O182: 3 | P182: = | Q182: =M182*O182 -> 348 | S182: 117 | T182: * | U182: 3 | V182: = | W182: =S182*U182 -> 351 | Y182: 118 | Z182: * | AA182: 3 | AB182: = | AC182: =Y182*AA182 -> 354 | AE182: 119 | AF182: * | AG182: 3 | AH182: = | AI182: =AE182*AG182 -> 357 | AK182: 120 | AL182: * | AM182: 3 | AN182: = | AO182: =AK182*AM182 -> 360
A183: 114 | B183: * | C183: 4 | D183: = | E183: =A183*C183 -> 456 | G183: 115 | H183: * | I183: 4 | J183: = | K183: =G183*I183 -> 460 | M183: 116 | N183: * | O183: 4 | P183: = | Q183: =M183*O183 -> 464 | S183: 117 | T183: * | U183: 4 | V183: = | W183: =S183*U183 -> 468 | Y183: 118 | Z183: * | AA183: 4 | AB183: = | AC183: =Y183*AA183 -> 472 | AE183: 119 | AF183: * | AG183: 4 | AH183: = | AI183: =AE183*AG183 -> 476 | AK183: 120 | AL183: * | AM183: 4 | AN183: = | AO183: =AK183*AM183 -> 480
A184: 114 | B184: * | C184: 5 | D184: = | E184: =A184*C184 -> 570 | G184: 115 | H184: * | I184: 5 | J184: = | K184: =G184*I184 -> 575 | M184: 116 | N184: * | O184: 5 | P184: = | Q184: =M184*O184 -> 580 | S184: 117 | T184: * | U184: 5 | V184: = | W184: =S184*U184 -> 585 | Y184: 118 | Z184: * | AA184: 5 | AB184: = | AC184: =Y184*AA184 -> 590 | AE184: 119 | AF184: * | AG184: 5 | AH184: = | AI184: =AE184*AG184 -> 595 | AK184: 120 | AL184: * | AM184: 5 | AN184: = | AO184: =AK184*AM184 -> 600
A185: 114 | B185: * | C185: 6 | D185: = | E185: =A185*C185 -> 684 | G185: 115 | H185: * | I185: 6 | J185: = | K185: =G185*I185 -> 690 | M185: 116 | N185: * | O185: 6 | P185: = | Q185: =M185*O185 -> 696 | S185: 117 | T185: * | U185: 6 | V185: = | W185: =S185*U185 -> 702 | Y185: 118 | Z185: * | AA185: 6 | AB185: = | AC185: =Y185*AA185 -> 708 | AE185: 119 | AF185: * | AG185: 6 | AH185: = | AI185: =AE185*AG185 -> 714 | AK185: 120 | AL185: * | AM185: 6 | AN185: = | AO185: =AK185*AM185 -> 720
A186: 114 | B186: * | C186: 7 | D186: = | E186: =A186*C186 -> 798 | G186: 115 | H186: * | I186: 7 | J186: = | K186: =G186*I186 -> 805 | M186: 116 | N186: * | O186: 7 | P186: = | Q186: =M186*O186 -> 812 | S186: 117 | T186: * | U186: 7 | V186: = | W186: =S186*U186 -> 819 | Y186: 118 | Z186: * | AA186: 7 | AB186: = | AC186: =Y186*AA186 -> 826 | AE186: 119 | AF186: * | AG186: 7 | AH186: = | AI186: =AE186*AG186 -> 833 | AK186: 120 | AL186: * | AM186: 7 | AN186: = | AO186: =AK186*AM186 -> 840
A187: 114 | B187: * | C187: 8 | D187: = | E187: =A187*C187 -> 912 | G187: 115 | H187: * | I187: 8 | J187: = | K187: =G187*I187 -> 920 | M187: 116 | N187: * | O187: 8 | P187: = | Q187: =M187*O187 -> 928 | S187: 117 | T187: * | U187: 8 | V187: = | W187: =S187*U187 -> 936 | Y187: 118 | Z187: * | AA187: 8 | AB187: = | AC187: =Y187*AA187 -> 944 | AE187: 119 | AF187: * | AG187: 8 | AH187: = | AI187: =AE187*AG187 -> 952 | AK187: 120 | AL187: * | AM187: 8 | AN187: = | AO187: =AK187*AM187 -> 960
A188: 114 | B188: * | C188: 9 | D188: = | E188: =A188*C188 -> 1026 | G188: 115 | H188: * | I188: 9 | J188: = | K188: =G188*I188 -> 1035 | M188: 116 | N188: * | O188: 9 | P188: = | Q188: =M188*O188 -> 1044 | S188: 117 | T188: * | U188: 9 | V188: = | W188: =S188*U188 -> 1053 | Y188: 118 | Z188: * | AA188: 9 | AB188: = | AC188: =Y188*AA188 -> 1062 | AE188: 119 | AF188: * | AG188: 9 | AH188: = | AI188: =AE188*AG188 -> 1071 | AK188: 120 | AL188: * | AM188: 9 | AN188: = | AO188: =AK188*AM188 -> 1080
A190: 121 단 | G190: 122 단 | M190: 123 단 | S190: 124 단 | Y190: 125 단 | AE190: 126 단 | AK190: 127 단
A191: 121 | B191: * | C191: 1 | D191: = | E191: =A191*C191 -> 121 | G191: 122 | H191: * | I191: 1 | J191: = | K191: =G191*I191 -> 122 | M191: 123 | N191: * | O191: 1 | P191: = | Q191: =M191*O191 -> 123 | S191: 124 | T191: * | U191: 1 | V191: = | W191: =S191*U191 -> 124 | Y191: 125 | Z191: * | AA191: 1 | AB191: = | AC191: =Y191*AA191 -> 125 | AE191: 126 | AF191: * | AG191: 1 | AH191: = | AI191: =AE191*AG191 -> 126 | AK191: 127 | AL191: * | AM191: 1 | AN191: = | AO191: =AK191*AM191 -> 127
A192: 121 | B192: * | C192: 2 | D192: = | E192: =A192*C192 -> 242 | G192: 122 | H192: * | I192: 2 | J192: = | K192: =G192*I192 -> 244 | M192: 123 | N192: * | O192: 2 | P192: = | Q192: =M192*O192 -> 246 | S192: 124 | T192: * | U192: 2 | V192: = | W192: =S192*U192 -> 248 | Y192: 125 | Z192: * | AA192: 2 | AB192: = | AC192: =Y192*AA192 -> 250 | AE192: 126 | AF192: * | AG192: 2 | AH192: = | AI192: =AE192*AG192 -> 252 | AK192: 127 | AL192: * | AM192: 2 | AN192: = | AO192: =AK192*AM192 -> 254
A193: 121 | B193: * | C193: 3 | D193: = | E193: =A193*C193 -> 363 | G193: 122 | H193: * | I193: 3 | J193: = | K193: =G193*I193 -> 366 | M193: 123 | N193: * | O193: 3 | P193: = | Q193: =M193*O193 -> 369 | S193: 124 | T193: * | U193: 3 | V193: = | W193: =S193*U193 -> 372 | Y193: 125 | Z193: * | AA193: 3 | AB193: = | AC193: =Y193*AA193 -> 375 | AE193: 126 | AF193: * | AG193: 3 | AH193: = | AI193: =AE193*AG193 -> 378 | AK193: 127 | AL193: * | AM193: 3 | AN193: = | AO193: =AK193*AM193 -> 381
A194: 121 | B194: * | C194: 4 | D194: = | E194: =A194*C194 -> 484 | G194: 122 | H194: * | I194: 4 | J194: = | K194: =G194*I194 -> 488 | M194: 123 | N194: * | O194: 4 | P194: = | Q194: =M194*O194 -> 492 | S194: 124 | T194: * | U194: 4 | V194: = | W194: =S194*U194 -> 496 | Y194: 125 | Z194: * | AA194: 4 | AB194: = | AC194: =Y194*AA194 -> 500 | AE194: 126 | AF194: * | AG194: 4 | AH194: = | AI194: =AE194*AG194 -> 504 | AK194: 127 | AL194: * | AM194: 4 | AN194: = | AO194: =AK194*AM194 -> 508
A195: 121 | B195: * | C195: 5 | D195: = | E195: =A195*C195 -> 605 | G195: 122 | H195: * | I195: 5 | J195: = | K195: =G195*I195 -> 610 | M195: 123 | N195: * | O195: 5 | P195: = | Q195: =M195*O195 -> 615 | S195: 124 | T195: * | U195: 5 | V195: = | W195: =S195*U195 -> 620 | Y195: 125 | Z195: * | AA195: 5 | AB195: = | AC195: =Y195*AA195 -> 625 | AE195: 126 | AF195: * | AG195: 5 | AH195: = | AI195: =AE195*AG195 -> 630 | AK195: 127 | AL195: * | AM195: 5 | AN195: = | AO195: =AK195*AM195 -> 635
A196: 121 | B196: * | C196: 6 | D196: = | E196: =A196*C196 -> 726 | G196: 122 | H196: * | I196: 6 | J196: = | K196: =G196*I196 -> 732 | M196: 123 | N196: * | O196: 6 | P196: = | Q196: =M196*O196 -> 738 | S196: 124 | T196: * | U196: 6 | V196: = | W196: =S196*U196 -> 744 | Y196: 125 | Z196: * | AA196: 6 | AB196: = | AC196: =Y196*AA196 -> 750 | AE196: 126 | AF196: * | AG196: 6 | AH196: = | AI196: =AE196*AG196 -> 756 | AK196: 127 | AL196: * | AM196: 6 | AN196: = | AO196: =AK196*AM196 -> 762
A197: 121 | B197: * | C197: 7 | D197: = | E197: =A197*C197 -> 847 | G197: 122 | H197: * | I197: 7 | J197: = | K197: =G197*I197 -> 854 | M197: 123 | N197: * | O197: 7 | P197: = | Q197: =M197*O197 -> 861 | S197: 124 | T197: * | U197: 7 | V197: = | W197: =S197*U197 -> 868 | Y197: 125 | Z197: * | AA197: 7 | AB197: = | AC197: =Y197*AA197 -> 875 | AE197: 126 | AF197: * | AG197: 7 | AH197: = | AI197: =AE197*AG197 -> 882 | AK197: 127 | AL197: * | AM197: 7 | AN197: = | AO197: =AK197*AM197 -> 889
A198: 121 | B198: * | C198: 8 | D198: = | E198: =A198*C198 -> 968 | G198: 122 | H198: * | I198: 8 | J198: = | K198: =G198*I198 -> 976 | M198: 123 | N198: * | O198: 8 | P198: = | Q198: =M198*O198 -> 984 | S198: 124 | T198: * | U198: 8 | V198: = | W198: =S198*U198 -> 992 | Y198: 125 | Z198: * | AA198: 8 | AB198: = | AC198: =Y198*AA198 -> 1000 | AE198: 126 | AF198: * | AG198: 8 | AH198: = | AI198: =AE198*AG198 -> 1008 | AK198: 127 | AL198: * | AM198: 8 | AN198: = | AO198: =AK198*AM198 -> 1016
A199: 121 | B199: * | C199: 9 | D199: = | E199: =A199*C199 -> 1089 | G199: 122 | H199: * | I199: 9 | J199: = | K199: =G199*I199 -> 1098 | M199: 123 | N199: * | O199: 9 | P199: = | Q199: =M199*O199 -> 1107 | S199: 124 | T199: * | U199: 9 | V199: = | W199: =S199*U199 -> 1116 | Y199: 125 | Z199: * | AA199: 9 | AB199: = | AC199: =Y199*AA199 -> 1125 | AE199: 126 | AF199: * | AG199: 9 | AH199: = | AI199: =AE199*AG199 -> 1134 | AK199: 127 | AL199: * | AM199: 9 | AN199: = | AO199: =AK199*AM199 -> 1143
A201: 128 단 | G201: 129 단 | M201: 130 단 | S201: 131 단 | Y201: 132 단 | AE201: 133 단 | AK201: 134 단
A202: 128 | B202: * | C202: 1 | D202: = | E202: =A202*C202 -> 128 | G202: 129 | H202: * | I202: 1 | J202: = | K202: =G202*I202 -> 129 | M202: 130 | N202: * | O202: 1 | P202: = | Q202: =M202*O202 -> 130 | S202: 131 | T202: * | U202: 1 | V202: = | W202: =S202*U202 -> 131 | Y202: 132 | Z202: * | AA202: 1 | AB202: = | AC202: =Y202*AA202 -> 132 | AE202: 133 | AF202: * | AG202: 1 | AH202: = | AI202: =AE202*AG202 -> 133 | AK202: 134 | AL202: * | AM202: 1 | AN202: = | AO202: =AK202*AM202 -> 134
A203: 128 | B203: * | C203: 2 | D203: = | E203: =A203*C203 -> 256 | G203: 129 | H203: * | I203: 2 | J203: = | K203: =G203*I203 -> 258 | M203: 130 | N203: * | O203: 2 | P203: = | Q203: =M203*O203 -> 260 | S203: 131 | T203: * | U203: 2 | V203: = | W203: =S203*U203 -> 262 | Y203: 132 | Z203: * | AA203: 2 | AB203: = | AC203: =Y203*AA203 -> 264 | AE203: 133 | AF203: * | AG203: 2 | AH203: = | AI203: =AE203*AG203 -> 266 | AK203: 134 | AL203: * | AM203: 2 | AN203: = | AO203: =AK203*AM203 -> 268
A204: 128 | B204: * | C204: 3 | D204: = | E204: =A204*C204 -> 384 | G204: 129 | H204: * | I204: 3 | J204: = | K204: =G204*I204 -> 387 | M204: 130 | N204: * | O204: 3 | P204: = | Q204: =M204*O204 -> 390 | S204: 131 | T204: * | U204: 3 | V204: = | W204: =S204*U204 -> 393 | Y204: 132 | Z204: * | AA204: 3 | AB204: = | AC204: =Y204*AA204 -> 396 | AE204: 133 | AF204: * | AG204: 3 | AH204: = | AI204: =AE204*AG204 -> 399 | AK204: 134 | AL204: * | AM204: 3 | AN204: = | AO204: =AK204*AM204 -> 402
A205: 128 | B205: * | C205: 4 | D205: = | E205: =A205*C205 -> 512 | G205: 129 | H205: * | I205: 4 | J205: = | K205: =G205*I205 -> 516 | M205: 130 | N205: * | O205: 4 | P205: = | Q205: =M205*O205 -> 520 | S205: 131 | T205: * | U205: 4 | V205: = | W205: =S205*U205 -> 524 | Y205: 132 | Z205: * | AA205: 4 | AB205: = | AC205: =Y205*AA205 -> 528 | AE205: 133 | AF205: * | AG205: 4 | AH205: = | AI205: =AE205*AG205 -> 532 | AK205: 134 | AL205: * | AM205: 4 | AN205: = | AO205: =AK205*AM205 -> 536
A206: 128 | B206: * | C206: 5 | D206: = | E206: =A206*C206 -> 640 | G206: 129 | H206: * | I206: 5 | J206: = | K206: =G206*I206 -> 645 | M206: 130 | N206: * | O206: 5 | P206: = | Q206: =M206*O206 -> 650 | S206: 131 | T206: * | U206: 5 | V206: = | W206: =S206*U206 -> 655 | Y206: 132 | Z206: * | AA206: 5 | AB206: = | AC206: =Y206*AA206 -> 660 | AE206: 133 | AF206: * | AG206: 5 | AH206: = | AI206: =AE206*AG206 -> 665 | AK206: 134 | AL206: * | AM206: 5 | AN206: = | AO206: =AK206*AM206 -> 670
A207: 128 | B207: * | C207: 6 | D207: = | E207: =A207*C207 -> 768 | G207: 129 | H207: * | I207: 6 | J207: = | K207: =G207*I207 -> 774 | M207: 130 | N207: * | O207: 6 | P207: = | Q207: =M207*O207 -> 780 | S207: 131 | T207: * | U207: 6 | V207: = | W207: =S207*U207 -> 786 | Y207: 132 | Z207: * | AA207: 6 | AB207: = | AC207: =Y207*AA207 -> 792 | AE207: 133 | AF207: * | AG207: 6 | AH207: = | AI207: =AE207*AG207 -> 798 | AK207: 134 | AL207: * | AM207: 6 | AN207: = | AO207: =AK207*AM207 -> 804
A208: 128 | B208: * | C208: 7 | D208: = | E208: =A208*C208 -> 896 | G208: 129 | H208: * | I208: 7 | J208: = | K208: =G208*I208 -> 903 | M208: 130 | N208: * | O208: 7 | P208: = | Q208: =M208*O208 -> 910 | S208: 131 | T208: * | U208: 7 | V208: = | W208: =S208*U208 -> 917 | Y208: 132 | Z208: * | AA208: 7 | AB208: = | AC208: =Y208*AA208 -> 924 | AE208: 133 | AF208: * | AG208: 7 | AH208: = | AI208: =AE208*AG208 -> 931 | AK208: 134 | AL208: * | AM208: 7 | AN208: = | AO208: =AK208*AM208 -> 938
A209: 128 | B209: * | C209: 8 | D209: = | E209: =A209*C209 -> 1024 | G209: 129 | H209: * | I209: 8 | J209: = | K209: =G209*I209 -> 1032 | M209: 130 | N209: * | O209: 8 | P209: = | Q209: =M209*O209 -> 1040 | S209: 131 | T209: * | U209: 8 | V209: = | W209: =S209*U209 -> 1048 | Y209: 132 | Z209: * | AA209: 8 | AB209: = | AC209: =Y209*AA209 -> 1056 | AE209: 133 | AF209: * | AG209: 8 | AH209: = | AI209: =AE209*AG209 -> 1064 | AK209: 134 | AL209: * | AM209: 8 | AN209: = | AO209: =AK209*AM209 -> 1072
A210: 128 | B210: * | C210: 9 | D210: = | E210: =A210*C210 -> 1152 | G210: 129 | H210: * | I210: 9 | J210: = | K210: =G210*I210 -> 1161 | M210: 130 | N210: * | O210: 9 | P210: = | Q210: =M210*O210 -> 1170 | S210: 131 | T210: * | U210: 9 | V210: = | W210: =S210*U210 -> 1179 | Y210: 132 | Z210: * | AA210: 9 | AB210: = | AC210: =Y210*AA210 -> 1188 | AE210: 133 | AF210: * | AG210: 9 | AH210: = | AI210: =AE210*AG210 -> 1197 | AK210: 134 | AL210: * | AM210: 9 | AN210: = | AO210: =AK210*AM210 -> 1206
A212: 135 단 | G212: 136 단 | M212: 137 단 | S212: 138 단 | Y212: 139 단 | AE212: 140 단 | AK212: 141 단
A213: 135 | B213: * | C213: 1 | D213: = | E213: =A213*C213 -> 135 | G213: 136 | H213: * | I213: 1 | J213: = | K213: =G213*I213 -> 136 | M213: 137 | N213: * | O213: 1 | P213: = | Q213: =M213*O213 -> 137 | S213: 138 | T213: * | U213: 1 | V213: = | W213: =S213*U213 -> 138 | Y213: 139 | Z213: * | AA213: 1 | AB213: = | AC213: =Y213*AA213 -> 139 | AE213: 140 | AF213: * | AG213: 1 | AH213: = | AI213: =AE213*AG213 -> 140 | AK213: 141 | AL213: * | AM213: 1 | AN213: = | AO213: =AK213*AM213 -> 141
A214: 135 | B214: * | C214: 2 | D214: = | E214: =A214*C214 -> 270 | G214: 136 | H214: * | I214: 2 | J214: = | K214: =G214*I214 -> 272 | M214: 137 | N214: * | O214: 2 | P214: = | Q214: =M214*O214 -> 274 | S214: 138 | T214: * | U214: 2 | V214: = | W214: =S214*U214 -> 276 | Y214: 139 | Z214: * | AA214: 2 | AB214: = | AC214: =Y214*AA214 -> 278 | AE214: 140 | AF214: * | AG214: 2 | AH214: = | AI214: =AE214*AG214 -> 280 | AK214: 141 | AL214: * | AM214: 2 | AN214: = | AO214: =AK214*AM214 -> 282
A215: 135 | B215: * | C215: 3 | D215: = | E215: =A215*C215 -> 405 | G215: 136 | H215: * | I215: 3 | J215: = | K215: =G215*I215 -> 408 | M215: 137 | N215: * | O215: 3 | P215: = | Q215: =M215*O215 -> 411 | S215: 138 | T215: * | U215: 3 | V215: = | W215: =S215*U215 -> 414 | Y215: 139 | Z215: * | AA215: 3 | AB215: = | AC215: =Y215*AA215 -> 417 | AE215: 140 | AF215: * | AG215: 3 | AH215: = | AI215: =AE215*AG215 -> 420 | AK215: 141 | AL215: * | AM215: 3 | AN215: = | AO215: =AK215*AM215 -> 423
A216: 135 | B216: * | C216: 4 | D216: = | E216: =A216*C216 -> 540 | G216: 136 | H216: * | I216: 4 | J216: = | K216: =G216*I216 -> 544 | M216: 137 | N216: * | O216: 4 | P216: = | Q216: =M216*O216 -> 548 | S216: 138 | T216: * | U216: 4 | V216: = | W216: =S216*U216 -> 552 | Y216: 139 | Z216: * | AA216: 4 | AB216: = | AC216: =Y216*AA216 -> 556 | AE216: 140 | AF216: * | AG216: 4 | AH216: = | AI216: =AE216*AG216 -> 560 | AK216: 141 | AL216: * | AM216: 4 | AN216: = | AO216: =AK216*AM216 -> 564
A217: 135 | B217: * | C217: 5 | D217: = | E217: =A217*C217 -> 675 | G217: 136 | H217: * | I217: 5 | J217: = | K217: =G217*I217 -> 680 | M217: 137 | N217: * | O217: 5 | P217: = | Q217: =M217*O217 -> 685 | S217: 138 | T217: * | U217: 5 | V217: = | W217: =S217*U217 -> 690 | Y217: 139 | Z217: * | AA217: 5 | AB217: = | AC217: =Y217*AA217 -> 695 | AE217: 140 | AF217: * | AG217: 5 | AH217: = | AI217: =AE217*AG217 -> 700 | AK217: 141 | AL217: * | AM217: 5 | AN217: = | AO217: =AK217*AM217 -> 705
A218: 135 | B218: * | C218: 6 | D218: = | E218: =A218*C218 -> 810 | G218: 136 | H218: * | I218: 6 | J218: = | K218: =G218*I218 -> 816 | M218: 137 | N218: * | O218: 6 | P218: = | Q218: =M218*O218 -> 822 | S218: 138 | T218: * | U218: 6 | V218: = | W218: =S218*U218 -> 828 | Y218: 139 | Z218: * | AA218: 6 | AB218: = | AC218: =Y218*AA218 -> 834 | AE218: 140 | AF218: * | AG218: 6 | AH218: = | AI218: =AE218*AG218 -> 840 | AK218: 141 | AL218: * | AM218: 6 | AN218: = | AO218: =AK218*AM218 -> 846
A219: 135 | B219: * | C219: 7 | D219: = | E219: =A219*C219 -> 945 | G219: 136 | H219: * | I219: 7 | J219: = | K219: =G219*I219 -> 952 | M219: 137 | N219: * | O219: 7 | P219: = | Q219: =M219*O219 -> 959 | S219: 138 | T219: * | U219: 7 | V219: = | W219: =S219*U219 -> 966 | Y219: 139 | Z219: * | AA219: 7 | AB219: = | AC219: =Y219*AA219 -> 973 | AE219: 140 | AF219: * | AG219: 7 | AH219: = | AI219: =AE219*AG219 -> 980 | AK219: 141 | AL219: * | AM219: 7 | AN219: = | AO219: =AK219*AM219 -> 987
A220: 135 | B220: * | C220: 8 | D220: = | E220: =A220*C220 -> 1080 | G220: 136 | H220: * | I220: 8 | J220: = | K220: =G220*I220 -> 1088 | M220: 137 | N220: * | O220: 8 | P220: = | Q220: =M220*O220 -> 1096 | S220: 138 | T220: * | U220: 8 | V220: = | W220: =S220*U220 -> 1104 | Y220: 139 | Z220: * | AA220: 8 | AB220: = | AC220: =Y220*AA220 -> 1112 | AE220: 140 | AF220: * | AG220: 8 | AH220: = | AI220: =AE220*AG220 -> 1120 | AK220: 141 | AL220: * | AM220: 8 | AN220: = | AO220: =AK220*AM220 -> 1128
... 21 more rows
